Cogmind - Beta 12 @@@ ROGUE MODE // 2023.03.13 @ 21:25:52 Player: Savant Result: Escaped! Performance ------------- Evolutions (9) 4500 Regions Visited (30) 6000 Robots Destroyed (381) 1905 Value Destroyed (24164) 24164 Prototype IDs (80) 1600 Alien Tech Used (11) 2200 Bonus (25560) 25560 TOTAL SCORE: 65929 Bonus ------- Triggered High Security 500 High Alert Combat Kills 5383 Follower Combat Kills 11200 Entered Garrisons 1800 Used RIF Installer 4000 Built Enhanced Grunts 300 A7 Reached Mainframe 300 Win 3000 Friendly Fire -923 Cogmind --------- Core Integrity 8/1600 Matter 104/300 Energy 99/100 System Corruption 0% Temperature Cool (0) Movement Core (50) Location To Epsilon Eridani Parts ------- > --- POWER (2) -------- (None) > --- PROPULSION (4) --- Biometal Heavy Treads Enhanced Armored Heavy Treads > --- UTILITY (16) ----- Experimental Coolant Injector Spectral Analyzer Advanced Targeting Computer Experimental Core Analyzer Graphene Brace Thermal Barrier Experimental Hacking Suite Improved System Shield Relay Coupler [NC] (1) > --- WEAPON (3) ------- (None) > --- INVENTORY (5) ---- Improved Matter Neutralizer Core Stripper Sigix Broadsword Peak State ------------ > --- POWER ------------ Light Quantum Reactor Improved Quantum Reactor > --- PROPULSION ------- Experimental Biometal Heavy Treads High-density Centrium Heavy Treads > --- UTILITY ---------- Experimental Coolant Injector Huge Storage Unit Spectral Analyzer Advanced Targeting Computer Experimental Core Analyzer Advanced Phase Shifter Centrium Medium Armor Plating Heavy Regenerative Plating Graphene Brace Thermal Barrier Experimental Hacking Suite Improved System Shield Relay Coupler [NC] Microwarp Drive > --- WEAPON ----------- Multirail Sigix Broadsword > --- INVENTORY -------- Micro Antimatter Reactor Biometal Heavy Treads Experimental EM Disruption Field Point Defense Array Advanced Component Analysis Suite Long-range Tractor Beam Drone Bay Subatomic Replicator Improved Matter Neutralizer Improved Matter Neutralizer Enhanced Nova Cannon Multirail Multirail Ragnarok Missile Launcher Sigix Terminator Advanced Remote Datajack Advanced Remote Datajack Core Stripper Enhanced Force Lance [Rating: 246] Favorites ----------- Power Micro Antimatter Reactor Engine Cooled Ion Engine Power Core Micro Fission Core Reactor Micro Antimatter Reactor Propulsion Advanced Heavy Siege Treads Treads Advanced Heavy Siege Treads Leg Aluminum Leg Wheel Wheel Hover Unit Hover Unit Flight Unit Nuclear Pulse Array Utility Improved Hacking Suite Device Improved Sensor Array Storage High-capacity Storage Unit Processor Advanced Signal Interpreter Hackware Improved Hacking Suite Protection Improved Medium Armor Plating Artifact Microwarp Drive Weapon Lance Energy Gun Improved EM Shotgun Energy Cannon Advanced Beam Cannon Ballistic Gun Advanced KE Penetrator Ballistic Cannon Magnetic Acceleration Cannon Launcher Mini Grenade Launcher Special Weapon Advanced Remote Datajack Impact Weapon Heavy Hammer Slashing Weapon Sigix Broadsword Piercing Weapon Lance Special Melee Weapon Improved Datajack Build | -11 -10 -10 -9 -9 -9 -8 -8 -8 -8 -7 -7 -6 -6 -5 -5 -4 -4 -4 -4 -4 -4 -3 -3 -3 -3 -2 -2 -2 -1 -1 ------- Run | Jun Mat Min Mat Sto Gar Mat Gar Mat Gar Fac Gar Fac Gar Fac Gar Fac Ext Cet Arc Hub Gar Res Gar Res Gar Res Qua Sec Acc Com Slots Evolved 18 | . . . 2 . . 2 . . . 2 . 2 . 2 . 2 . . . . . 2 . . . 2 . . 2 . Power 1 | . . . . . . . . . . . . . . . . . . . . . . . . . . . . . 1 . Propulsion 2 | . . . . . . . . . . . . . . . . . . . . . . . . . . 2 . . . . Utility 14 | . . . 2 . . 2 . . . 2 . 2 . 2 . 2 . . . . . 2 . . . . . . . . Weapon 1 | . . . . . . . . . . . . . . . . . . . . . . . . . . . . . 1 . Parts Attached 908 | 6 18 2 43 10 23 40 34 11 31 29 13 31 7 20 16 24 36 11 5 10 21 62 35 16 52 36 41 111 44 70 Power 33 | 1 1 . 5 . . 1 . . 1 . 1 3 . 7 1 . 1 . . . 1 1 . 1 1 1 . 2 2 2 Engine 13 | 1 1 . 5 . . 1 . . . . 1 1 . 3 . . . . . . . . . . . . . . . . Core 7 | . . . . . . . . . 1 . . 1 . 4 . . 1 . . . . . . . . . . . . . Reactor 13 | . . . . . . . . . . . . 1 . . 1 . . . . . 1 1 . 1 1 1 . 2 2 2 Propulsion 56 | 2 3 . 10 1 1 1 6 1 3 3 1 5 . 3 . . 1 . . . . . 2 . 1 4 3 3 . 2 Treads 36 | . 2 . 6 1 1 1 . 1 2 1 1 3 . 1 . . 1 . . . . . 2 . 1 4 3 3 . 2 Leg 2 | . . . . . . . 2 . . . . . . . . . . . . . . . . . . . . . . . Wheel 12 | 2 1 . 3 . . . 4 . 1 1 . . . . . . . . . . . . . . . . . . . . Hover 1 | . . . 1 . . . . . . . . . . . . . . . . . . . . . . . . . . . Flight 5 | . . . . . . . . . . 1 . 2 . 2 . . . . . . . . . . . . . . . . Utility 362 | 1 4 . 16 3 6 6 8 5 9 14 2 17 5 10 10 12 16 4 5 5 11 27 17 7 16 16 12 37 22 39 Device 151 | . 1 . 9 1 2 1 2 5 . 4 . 6 . 5 1 2 13 . 4 4 4 14 2 . 2 2 3 21 13 30 Storage 8 | 1 1 . . . . . . . 1 1 . 1 . 1 . . . . . . . . . . . 1 . 1 . . Processor 12 | . 1 . 1 1 1 . . . . 1 . 1 . . . . . . . . . 2 1 . . . 1 . 1 1 Hackware 103 | . . . . . . 4 4 . 4 6 2 7 5 4 8 8 2 1 1 1 5 6 9 4 8 8 3 2 1 . Protection 79 | . 1 . 6 1 3 1 2 . 4 2 . 2 . . 1 2 1 3 . . 2 5 5 3 6 5 2 8 6 8 Artifact 9 | . . . . . . . . . . . . . . . . . . . . . . . . . . . 3 5 1 . Weapon 457 | 2 10 2 12 6 16 32 20 5 18 12 9 6 2 . 5 12 18 7 . 5 9 34 16 8 34 15 26 69 20 27 Energy Gun 6 | 1 2 . 3 . . . . . . . . . . . . . . . . . . . . . . . . . . . Energy Cannon 68 | . . . . 2 7 6 1 . . . . . . . . 4 1 2 . . . 6 1 . 7 3 7 13 5 3 Ballistic Gun 132 | 1 6 1 5 2 1 13 5 4 6 3 1 3 . . 1 2 6 3 . 2 5 12 4 5 10 3 5 8 4 11 Ballistic Cannon 9 | . . . . . . 1 1 . . . . . . . . . . . . . . 2 1 . 2 2 . . . . Launcher 26 | . 2 . . . 2 . 3 . 4 2 2 . . . . . 1 . . . . 1 1 . . . . 2 2 4 Special Weapon 94 | . . . . . . . . . 2 3 3 2 1 . 3 4 4 1 . 2 2 11 5 3 10 5 8 19 4 2 Impact Weapon 36 | . . . 4 2 5 7 5 . 3 . . . . . . . . . . . . . . . . . 1 7 . 2 Slashing Weapon 19 | . . . . . . . . 1 . . . . . . . . . . . . . . . . . . . 12 4 2 Piercing Weapon 50 | . . . . . . . . . . 2 3 1 1 . 1 2 6 1 . 1 2 2 4 . 5 2 5 8 1 3 Special Melee Weapon 17 | . . 1 . . 1 5 5 . 3 2 . . . . . . . . . . . . . . . . . . . . Unidentified Prototypes 10 | . . . 2 . . 1 . . . 1 . . . 1 . . 1 1 . . . 1 . . . . 1 . . 1 Parts Lost 63 | . 2 . 1 3 2 1 5 . 1 . 1 2 . 1 4 6 1 1 . . 1 . 5 2 8 1 . 6 2 7 Power 6 | . . . 1 . . 1 . . 1 . 1 . . . . . 1 . . . . . . . . . . 1 . . Propulsion 8 | . . . . 1 1 . 2 . . . . . . . . . . . . . . . 1 . 1 . . 1 . 1 Utility 42 | . 1 . . 1 1 . 2 . . . . 1 . 1 4 6 . 1 . . 1 . 4 2 6 1 . 4 1 5 Weapon 7 | . 1 . . 1 . . 1 . . . . 1 . . . . . . . . . . . . 1 . . . 1 1 Highest Loss Streak 5 | . 1 . 1 3 2 1 2 . 1 . 1 1 . 1 2 5 1 1 . . 1 . 3 1 3 1 . 2 1 5 To Critical Strikes 1 | . . . . . . . . . . . . . . . . . . . . . . . . . . . . 1 . . Average Slot Usage (%) 91 | . 91 100 99 100 100 98 98 100 99 94 92 92 93 93 92 91 93 94 93 94 93 94 88 93 88 84 85 81 79 80 Engine 2 | . 13 14 10 11 11 8 9 9 6 . 3 2 . . . . . . . . . . . . . . . . . . Core 1 | . . . . . . . . . 2 7 3 2 . 4 . . 1 5 5 5 2 . . . . . . . . . Reactor 2 | . . . . . . . . . . . . 1 6 . 4 5 3 . . . 2 4 4 4 4 4 4 4 6 7 Treads 7 | . 12 14 20 22 22 18 8 7 9 2 7 3 6 . 5 5 5 5 5 5 5 4 4 4 4 8 7 8 8 8 Wheel 1 | . 15 14 1 . . . 5 9 9 2 . . . . . . . . . . . . . . . . . . . . Device 5 | . 2 14 12 11 10 8 3 17 4 4 . 4 . 4 . 4 11 5 9 10 7 8 2 . 1 . 1 5 3 10 Storage 5 | . 14 14 11 11 11 9 9 9 9 2 7 3 6 . 5 5 5 5 5 5 5 4 4 4 4 4 4 4 4 3 Processor 6 | . 1 . 11 11 11 9 . . . 7 7 6 6 5 5 5 5 5 5 5 5 5 13 10 9 8 6 4 7 9 Hackware 37 | . . . . . . 18 29 18 23 41 44 48 46 56 54 49 44 42 42 46 49 50 43 54 51 44 44 39 30 20 Protection 5 | . 2 . 9 11 11 9 11 9 16 3 1 1 6 . 1 5 5 14 10 5 5 4 4 4 3 5 4 5 5 6 Energy Cannon 1 | . . . . 4 16 3 7 . . . . . . . . . . . . . . . . . . . . . 4 . Ballistic Gun 4 | . 22 28 15 4 . 8 5 10 13 3 4 2 2 . 1 . 1 4 . 3 3 4 4 5 1 1 . . 2 5 Special Weapon 2 | . . . . . . . . . 1 3 4 5 5 5 3 4 4 3 5 3 3 2 1 2 3 4 3 1 1 . Piercing Weapon 2 | . . . . . . . . . . 4 4 4 4 5 4 4 3 2 5 3 2 . 1 . 1 1 3 1 . . Naked Turns . | . . . . . . . . . . . . . . . . . . . . . . . . . . . . . . . Heaviest Build 178 | 13 32 32 39 41 45 45 55 50 72 68 59 69 69 66 67 78 80 86 74 71 79 97 91 76 92 100 135 178 173 175 Greatest Support 180 | 26 26 10 44 44 44 44 44 10 12 13 75 75 75 75 75 75 80 80 80 80 80 80 80 75 80 155 180 180 175 175 Greatest Overweight (x) 5 | . 3 3 3 . 1 1 5 4 5 5 4 . . . . 1 . 1 . . . 1 1 1 1 . . 1 . . Average Overweight (x) . | . 2 3 . . . . 2 4 4 . . . . . . . . . . . . . . . . . . . . . Largest Inventory Capacity 25 | 8 15 15 15 15 15 15 15 15 20 20 20 20 20 20 20 20 20 20 20 20 20 20 20 20 20 20 20 25 25 25 Average Capacity 18 | 6 12 15 15 15 15 15 15 15 19 10 20 14 20 7 20 20 20 20 20 20 20 20 20 20 20 20 20 23 25 24 Most Carried 25 | 6 14 14 15 15 15 15 15 15 20 20 20 20 20 19 20 20 20 20 20 20 20 20 20 20 20 20 20 25 25 25 Average Carried 17 | 3 10 14 14 14 13 14 13 14 18 10 19 12 18 6 19 18 18 19 19 20 19 19 19 19 19 19 19 21 23 23 Final Capacity 25 | 8 15 15 15 15 15 15 15 15 20 20 20 20 20 20 20 20 20 20 20 20 20 20 20 20 20 20 20 25 25 5 Final Carried 23 | 6 14 14 15 14 15 15 14 15 20 20 20 16 20 19 20 18 20 20 20 20 20 20 20 20 20 20 20 23 23 5 Class Distribution -------------------- 48% | Botlord-Mutant 14% | Mutant 13% | Bothacker-Mutant 8% | Wizard-Mutant 8% | Commander-Mutant 3% | Hacker-Mutant Dominant Class ---------------- Mutant | -10/Materials Mutant | -10/Mines Mutant | -9/Materials Mutant | -9/Storage Mutant | -9/Garrison Mutant | -8/Materials Bothacker-Mutant | -8/Garrison Bothacker-Mutant | -8/Materials Bothacker-Mutant | -8/Garrison Bothacker-Mutant | -7/Factory Botlord-Mutant | -7/Garrison Bothacker-Mutant | -6/Factory Botlord-Mutant | -6/Garrison Commander-Mutant | -5/Factory Botlord-Mutant | -5/Garrison Botlord-Mutant | -4/Factory Botlord-Mutant | -4/Extension Botlord-Mutant | -4/Cetus Botlord-Mutant | -4/Archives Botlord-Mutant | -4/Hub_04(d) Botlord-Mutant | -4/Garrison Botlord-Mutant | -3/Research Botlord-Mutant | -3/Garrison Botlord-Mutant | -3/Research Botlord-Mutant | -3/Garrison Botlord-Mutant | -2/Research Botlord-Mutant | -2/Quarantine Wizard-Mutant | -2/Section 7 Wizard-Mutant | -1/Access Wizard-Mutant | -1/Command Resources | -11 -10 -10 -9 -9 -9 -8 -8 -8 -8 -7 -7 -6 -6 -5 -5 -4 -4 -4 -4 -4 -4 -3 -3 -3 -3 -2 -2 -2 -1 -1 ----------- Run | Jun Mat Min Mat Sto Gar Mat Gar Mat Gar Fac Gar Fac Gar Fac Gar Fac Ext Cet Arc Hub Gar Res Gar Res Gar Res Qua Sec Acc Com Matter Collected 18454 | 165 412 . 1127 163 294 631 582 138 722 341 497 580 155 424 279 565 1023 183 106 122 476 1487 635 647 970 908 880 1704 803 1435 Remotely 742 | . . . . . . . . . . . . . . . . . . . . . . . . . . . . 10 . 732 Salvage Created 17550 | . 336 . 1275 524 547 409 573 104 560 199 320 388 . 180 107 256 336 . 305 . 784 512 377 334 526 228 587 3146 1217 3420 Parts 826 | . 24 . 90 31 25 11 21 5 36 8 15 24 . 8 5 8 18 . 24 . 17 29 14 27 25 8 23 122 78 130 Haulers Intercepted 4 | . . . 3 1 . . . . . . . . . . . . . . . . . . . . . . . . . . Recyclers Shooed 8 | . 1 . 1 . . . . . . . . . . . . . . . . . . 1 . . . 1 . . 3 1 Parts Field Recycled 8 | . . . . . . . . . . . . . . . . . . . . . . . . . . . . . 8 . Retrieved Matter 26 | . . . . . . . . . . . . . . . . . . . . . . . . . . . . . 26 . Parts Self-Destructed . | . . . . . . . . . . . . . . . . . . . . . . . . . . . . . . . Prevented . | . . . . . . . . . . . . . . . . . . . . . . . . . . . . . . . Kills | -11 -10 -10 -9 -9 -9 -8 -8 -8 -8 -7 -7 -6 -6 -5 -5 -4 -4 -4 -4 -4 -4 -3 -3 -3 -3 -2 -2 -2 -1 -1 ------- Run | Jun Mat Min Mat Sto Gar Mat Gar Mat Gar Fac Gar Fac Gar Fac Gar Fac Ext Cet Arc Hub Gar Res Gar Res Gar Res Qua Sec Acc Com Combat Hostiles Destroyed 303 | . 5 . 27 10 19 8 17 . 20 . 3 6 . 3 2 4 5 . . . 12 7 6 5 10 3 7 38 21 65 Melee 50 | . . . 3 . . 1 4 . . . . 1 . 3 2 . 1 . . . . . . . 1 1 . 17 7 9 Guns 126 | . 2 . 24 6 . 1 1 . 5 . 1 5 . . . 1 2 . . . 12 4 5 5 4 1 2 10 4 31 Cannons 49 | . . . . 4 10 4 4 . . . . . . . . 3 . . . . . 3 1 . 5 1 4 4 6 . AOE 66 | . 3 . . . 8 . 8 . 14 . 2 . . . . . 2 . . . . . . . . . . 1 4 24 Classes Destroyed 25 | . 7 . 3 . 1 1 1 . 1 . . 1 . . . . 1 . . . . . 1 . 1 . 1 1 . 5 Worker 19 | . 2 . 1 . . . . 2 . . . . . 1 . 1 . . . . . 2 . . . . 1 2 1 6 Builder 8 | . . . 2 . . . . . . . . . . . . . . . . . . . . . . . . 4 2 . Tunneler 2 | . . . . . . . . . . . . 1 . 1 . . . . . . . . . . . . . . . . Hauler 4 | . . . 3 1 . . . . . . . . . . . . . . . . . . . . . . . . . . Recycler 13 | . 1 . 1 . . . . 1 . 3 . . . . . . 1 . . . . 1 . . . . . 2 2 1 Carrier 1 | . . . . . . . . . . . . . . . . . . . . . . . . . . . . . . 1 Mechanic 3 | . 1 . . . . 1 . . . . . . . . . . . . . . . . . . . . . . . 1 Operator 15 | . 1 . 2 . . 1 . . . . . . . . . . . . 9 . . . . . . . . . . 2 Watcher 14 | . 2 . 4 . . 1 . . . . . 1 . . . . . . . . . 1 . . . . . 2 . 3 Swarmer 63 | . 3 . 10 . 8 . 4 . 14 . . . . . . . 2 . . . 2 . 2 . . . . 3 10 5 Cutter 6 | . . . . . . . . . . . . . . . . . . . . . . . . . 2 . . . . 4 Saboteur 1 | . . . . . . . . . . . . . . . . . . . . . . . . . . . . . . 1 Grunt 107 | . 2 . 11 6 7 6 10 . 1 . . 4 . 3 1 . . . . . 9 . 3 1 . 1 1 16 1 24 Brawler 8 | . . . . . . . 1 . . . 2 . . . . 1 . . . . . . . . . . . . . 4 Duelist 6 | . . . . . . 1 . . . . . . . . . . . . . . . . . 1 . 2 . . . 2 Protector 2 | . . . . . . . . . . . . . . . . . . . . . . . . . . . . . . 2 Sentry 28 | . . . 6 4 3 1 2 . 3 . . 1 . . . . 1 . . . 1 . . . 1 . . 2 . 3 Demolisher 1 | . . . . . . . . . . . . . . . . . 1 . . . . . . . . . . . . . Hunter 13 | . . . . . . . . . . . . . . . . . . . . . . . 1 . 4 . . 4 2 2 Programmer 50 | . . . . . . . . . 2 . 1 1 . . 1 3 . . . . . 7 . 3 3 . 5 9 8 7 Behemoth 5 | . . . . . 1 . . . . . . . . . . . . . . . . . 1 . . . . . . 3 S7 Guard 4 | . . . . . . . . . . . . . . . . . . . . . . . . . . . . 4 . . Striker 2 | . . . . . . . . . . . . . . . . . . . . . . . . . . . . . . 2 Executioner 4 | . . . . . . . . . . . . . . . . . . . . . . . . . . . . . . 4 Alpha 7 3 | . . . . . . . . . . . . . . . . . . . . . . . . . . . . 1 . 2 Fortress 1 | . . . . . . . . . . . . . . . . . . . . . . . . . . . 1 . . . Thug 2 | . . . . . . . . . . . . . . . . . 2 . . . . . . . . . . . . . Best Kill Streak 33 | . 6 . 7 4 6 2 4 2 9 2 2 2 . 2 1 2 2 . 1 . 6 3 2 2 2 1 2 8 6 33 Combat Bots Only 24 | . 3 . 6 4 6 2 4 . 9 . 2 2 . 2 1 2 2 . . . 6 3 2 2 2 1 2 5 6 24 Max Kills in Single Turn 30 | . 3 . 2 2 2 1 2 1 3 1 1 1 . 1 1 1 1 . 1 . 2 1 2 2 1 1 1 3 4 30 Gunslinging 1 | . . . 1 1 . . . . . . . . . . . . . . . . . . . 1 . . . . . 1 Exploded 21 | . 2 . . . 2 . 2 . 3 . 1 . . . . . 1 . . . . . . . . . . 1 4 21 Melee 1 | . . . 1 . . 1 1 . . . . 1 . 1 1 . 1 . . . . . . . 1 1 . 1 1 1 Uniques/NPCs Destroyed . | . . . . . . . . . . . . . . . . . . . . . . . . . . . . . . . Combat | -11 -10 -10 -9 -9 -9 -8 -8 -8 -8 -7 -7 -6 -6 -5 -5 -4 -4 -4 -4 -4 -4 -3 -3 -3 -3 -2 -2 -2 -1 -1 -------- Run | Jun Mat Min Mat Sto Gar Mat Gar Mat Gar Fac Gar Fac Gar Fac Gar Fac Ext Cet Arc Hub Gar Res Gar Res Gar Res Qua Sec Acc Com Damage Taken 33121 | . 358 . 739 366 865 747 700 . 499 70 547 310 . 139 239 1099 529 48 . 61 496 748 2333 971 1936 566 389 9067 2056 7243 Core 3954 | . 34 . 151 60 43 91 77 . 49 38 124 49 . 74 40 220 84 10 . . 33 25 151 43 130 110 86 1038 316 878 Absorbed by Shields 1308 | . . . 180 125 . . 25 . 3 . . . . . . 114 78 23 . 23 482 148 . . 61 46 . . . . Reduced by Siege Mode 803 | . . . . . . . . . . . 12 6 . . . 19 . . . . 47 72 59 . 201 . 7 211 35 134 Redirected to Core 637 | . . . . . . . . . . . . . . . . . . . . . . . . . . . 86 551 . . Redirected to Shielding 55 | . . . . . . . . . . . . . . . . . . . . . . . . . . . . . . 55 Regen/Repaired (Parts) 9691 | . . . . . . 445 . . . . 33 29 . 3 56 286 114 . 21 . . 152 . 221 . 250 . 3359 3790 932 Core Remaining (%) 63 | 100 . 86 . . 36 . . . 60 . 76 . 94 . 88 . . . . . 69 . . . 73 . . 14 . . Volleys Fired 1162 | . 24 . 72 28 39 36 33 1 53 9 25 36 12 32 22 59 82 2 . 4 38 93 43 29 58 62 60 97 50 63 Largest 3 | . 2 . 2 2 2 2 2 2 2 1 2 2 1 1 1 2 2 2 . 2 2 2 2 2 2 2 2 2 3 3 Hottest 271 | . 80 . 70 136 136 121 121 56 56 30 58 48 5 5 5 135 135 120 . 70 70 155 120 70 155 155 148 226 271 226 Shots Fired 1778 | . 45 . 143 52 65 71 58 2 94 9 31 45 12 32 22 75 93 3 . 5 61 142 70 38 85 70 78 148 79 150 Gun 892 | . 42 . 143 38 6 35 20 2 85 . 13 23 . . . 16 18 2 . 2 54 74 41 19 30 11 18 48 18 134 Cannon 416 | . . . . 14 54 36 31 . . . . . . . . 16 5 1 . . . 38 16 . 37 11 27 63 57 10 Launcher 49 | . 3 . . . 5 . 7 . 7 2 6 . . . . . 4 . . . . 3 1 . . . . 7 1 3 Special 421 | . . . . . . . . . 2 7 12 22 12 32 22 43 66 . . 3 7 27 12 19 18 48 33 30 3 3 Kinetic 911 | . 14 . 133 17 6 53 37 2 85 . 13 23 . . . 16 18 2 . 2 54 93 52 19 42 12 18 48 18 134 Thermal 367 | . 28 . . 14 54 18 14 . . . . . . . . 16 5 1 . . . 19 5 . 25 10 27 63 57 11 Explosive 48 | . 3 . . . 5 . 7 . 7 2 6 . . . . . 4 . . . . 3 1 . . . . 7 1 2 Electromagnetic 31 | . . . 10 21 . . . . . . . . . . . . . . . . . . . . . . . . . . Robot Hit Streak 49 | . 6 . 18 9 15 15 11 4 23 1 9 15 10 15 5 18 20 . . 2 15 24 19 9 31 9 24 25 21 49 Robot Miss Streak 6 | . 3 . 6 4 2 5 3 . 3 6 2 3 2 1 2 2 1 2 . 1 2 6 6 1 2 5 2 2 4 4 Penetration Max 2 | . . . . . . . . . 1 . . . . . . . . . . . 1 . . 1 . 1 . 1 1 2 Secondary Targets 14 | . . . 3 1 . . . . . . . . . . . . 1 . . . . . . 1 1 . . 1 . 6 Max Gunslinging Chain 1 | . . . 1 1 . . . . . . . . . . . . 1 . . . . . . 1 1 . . 1 . 1 Shots Hit Robots 1523 | . 26 . 120 42 50 69 52 6 70 11 29 42 9 33 19 58 81 . 21 3 51 83 42 30 69 47 58 184 55 163 Core Hits 657 | . 17 . 46 19 25 13 26 2 46 2 11 12 . 4 2 5 12 . 12 . 27 19 14 8 23 5 8 76 32 191 Critical Kills 27 | . . . 2 1 1 . . . . . . 1 . . . . . . . . 6 1 1 1 . . . 8 2 3 Critical Parts Destroyed 44 | . . . 3 . 1 2 2 . . . . 1 . . . . . . . . 8 7 2 2 5 . 3 5 1 2 Critical Strikes 89 | . . . 5 1 2 2 2 1 . 1 1 4 . 1 . . . . 1 . 14 8 4 3 6 1 3 19 4 6 Meltdown 6 | . . . . . 1 . . . . . . . . . . . . . . . . . . . . . . 5 . . Destroy 59 | . . . 2 . 1 . . . . . . 3 . . . . . . . . 14 8 4 3 5 . 3 8 3 5 Smash 8 | . . . 3 1 . 2 2 . . . . . . . . . . . . . . . . . . . . . . . Sever 8 | . . . . . . . . 1 . . . . . . . . . . . . . . . . . . . 5 1 1 Impale 8 | . . . . . . . . . . 1 1 1 . 1 . . . . 1 . . . . . 1 1 . 1 . . Melee Attacks 618 | . . . 24 2 22 28 23 6 12 44 23 27 2 33 43 6 4 . 22 4 2 2 13 . 17 11 18 120 50 60 Kinetic 13 | . . . . . . . . . . . . . . . . . . . . . . . . . . . 1 6 . 6 Impact 85 | . . . 24 2 18 21 12 . 8 . . . . . . . . . . . . . . . . . . . . . Slashing 199 | . . . . . . . . 6 . . . . . . . . . . . . . . . . . . . 99 48 46 Piercing 287 | . . . . . . . . . . 36 23 27 2 33 43 6 4 . 22 4 2 2 13 . 17 11 17 15 2 8 Sneak Attacks 92 | . . . 8 1 4 12 12 3 2 7 . 3 . 4 1 . 3 . 16 . . 1 . . 5 . 2 5 1 2 Combat Hostiles 29 | . . . . . . 5 8 . 2 . . 3 . 2 1 . 1 . . . . . . . 5 . . 2 . . Follow-up Attacks 8 | . . . . . . . . . . . . . . . . . . . . . . . . . . . . . 1 7 Damage Inflicted 83143 | . 567 . 2632 750 1405 2004 1957 273 1977 197 1155 634 . 461 139 1027 1130 55 1229 27 1448 2292 1061 483 2061 352 1314 11079 3740 41694 Guns 17601 | . 326 . 1809 477 85 363 172 21 850 . 195 283 . . . 376 328 55 . 27 1440 1349 726 483 683 136 369 1433 517 5098 Cannons 9062 | . . . . 225 771 745 557 . . . . . . . . 608 169 . . . . 864 335 . 1025 145 746 1581 1236 55 Explosions 38985 | . 241 . . . 549 . 607 . 966 . 394 . . . . . 386 . . . . . . . . . . 1779 609 33454 Melee 17306 | . . . 823 48 . 896 621 252 161 197 566 351 . 461 139 43 246 . 1229 . . 51 . . 353 39 192 6286 1378 2974 Ramming 189 | . . . . . . . . . . . . . . . . . 1 . . . 8 28 . . . 32 7 . . 113 Kinetic 20002 | . 122 . 1690 216 85 802 545 21 850 . 195 283 . . . 376 328 55 . 27 1440 2126 1061 483 1203 179 369 1600 517 5429 Thermal 39818 | . 204 . . 225 771 306 184 . . . . . . . . 608 169 . . . . 87 . . 505 102 746 1581 1236 33094 Explosive 5946 | . 241 . . . 549 . 607 . 966 . 394 . . . . . 386 . . . . . . . . . . 1779 609 415 Electromagnetic 380 | . . . 119 261 . . . . . . . . . . . . . . . . . . . . . . . . . . Impact 2549 | . . . 823 48 . 896 621 . 161 . . . . . . . . . . . . . . . . . . . . . Slashing 9724 | . . . . . . . . 252 . . . . . . . . . . . . . . . . . . . 5774 1322 2376 Piercing 4535 | . . . . . . . . . . 197 566 351 . 461 139 43 246 . 1229 . . 51 . . 353 39 192 345 56 267 Highest Corruption 23 | . 3 3 . . . . 6 6 . . 4 1 . 1 1 16 16 16 16 1 1 8 8 11 23 4 7 7 . . Average Corruption 6 | . 2 3 . . . . 5 4 . . 2 1 . 1 1 5 16 16 8 1 1 5 8 8 18 4 4 3 . . Corruption Purged 29 | . . . . . . . . 6 . . . 1 . . 1 . . . 16 . . . . . . . . 5 . . Corruption Blocked . | . . . . . . . . . . . . . . . . . . . . . . . . . . . . . . . Effects 483 | . 6 1 . . . . 8 4 . . 19 3 . 4 6 11 74 15 11 2 4 81 45 23 57 17 41 51 . . Message Errors 117 | . 1 . . . . . 2 . . . 6 1 . . 2 3 18 3 2 1 1 20 6 2 15 5 13 16 . . Matter Fused 126 | . 2 . . . . . 3 1 . . 5 . . 1 3 . 20 3 6 1 . 19 12 7 17 2 10 14 . . Heat Flow Errors 63 | . . . . . . . . 2 . . 4 . . 1 . 2 11 1 2 . . 8 9 3 4 3 7 6 . . Energy Discharges 65 | . 1 . . . . . 2 . . . 2 1 . . . 3 8 3 . . 2 15 5 5 4 3 5 6 . . Parts Rejected 10 | . . . . . . . . . . . . . . . . . 2 . . . . . 1 . 4 2 . 1 . . Parts Fused 3 | . . . . . . . . . . . . . . . . . . 1 . . . 1 . 1 . . . . . . Data Loss (minor) 43 | . 2 1 . . . . 1 . . . 1 . . 1 1 2 5 . 1 . . 10 6 1 5 2 3 1 . . Data Loss (major) 24 | . . . . . . . . . . . . . . 1 . 1 5 1 . . 1 4 2 2 3 . 1 3 . . Misfires 13 | . . . . . . . . . . . . . . . . . 2 1 . . . 4 3 . 1 . 1 1 . . Alerts 11 | . . . . . . . . 1 . . 1 1 . . . . 2 1 . . . . . 1 2 . 1 1 . . Misdirections 1 | . . . . . . . . . . . . . . . . . 1 . . . . . . . . . . . . . Weapon Failures 7 | . . . . . . . . . . . . . . . . . . 1 . . . . 1 1 2 . . 2 . . Overload Shots . | . . . . . . . . . . . . . . . . . . . . . . . . . . . . . . . Overflow Damage 5548 | . 8 . 311 10 26 226 240 61 92 28 193 24 . 142 . 71 . . 115 . . 68 . . . 22 113 962 389 2447 Projectiles 337 | . . . . 10 15 18 . . . . . . . . . 71 . . . . . 68 . . . 22 93 1 39 . Explosions 2151 | . 8 . . . 11 . . . 2 . . . . . . . . . . . . . . . . . . 156 27 1947 Melee 3060 | . . . 311 . . 208 240 61 90 28 193 24 . 142 . . . . 115 . . . . . . . 20 805 323 500 Knockbacks 15 | . . . 2 . . 6 1 . . . . . . . . . . . . . . 6 . . . . . . . . Impact 3 | . . . 2 . . 1 . . . . . . . . . . . . . . . . . . . . . . . . Kinetic 11 | . . . . . . 4 1 . . . . . . . . . . . . . . 6 . . . . . . . . Secondary 1 | . . . . . . 1 . . . . . . . . . . . . . . . . . . . . . . . . Self-Inflicted Damage 996 | . 25 . . . 86 . 4 . 41 . 97 . . . . . 80 . . . . 33 . . . . . . . 630 Shots 17 | . 2 . . . 5 . 1 . 2 . 2 . . . . . 3 . . . . 1 . . . . . . . 1 Rammed 14 | . . . . . . . . . . . . 1 . . . . 1 . . . 1 4 . . . 3 1 . . 3 Targets Rammed 14 | . . . . . . . . . . . . 1 . . . . 1 . . . 1 4 . . . 3 1 . . 3 Kicked . | . . . . . . . . . . . . . . . . . . . . . . . . . . . . . . . Crushed . | . . . . . . . . . . . . . . . . . . . . . . . . . . . . . . . Highest Temperature 330 | . 217 . 73 239 249 103 313 158 3 . 255 1 . 256 . 253 328 145 256 . . 246 264 250 276 330 190 307 198 198 Average Temperature 86 | . 79 . 22 48 64 40 139 82 3 . 105 1 . 142 . 94 114 61 107 . . 79 83 117 102 121 95 101 91 89 Received Heat Transfer 3916 | . 192 . 315 164 294 333 334 . 90 9 63 57 . 9 45 59 4 . . . 133 . 132 105 39 36 18 837 9 639 Effects 3 | . . . . . . . . . . . . . . . . . . . 2 . . . . . . . . 1 . . Energy Bleed 1 | . . . . . . . . . . . . . . . . . . . . . . . . . . . . 1 . . Interference 2 | . . . . . . . . . . . . . . . . . . . 2 . . . . . . . . . . . Siege Activations 47 | . . . . . . . . . . . 1 1 . . . 2 . . . . 4 5 4 2 4 1 4 8 4 7 Total Turns 852 | . . . . . . . . . . . 10 10 . . . 30 . . . . 74 118 45 106 103 3 32 128 48 145 Longest Duration 95 | . . . . . . . . . . . 10 10 . . . 27 . . . . 26 58 26 95 42 3 17 32 23 37 Robots Corrupted . | . . . . . . . . . . . . . . . . . . . . . . . . . . . . . . . Combat Hostiles . | . . . . . . . . . . . . . . . . . . . . . . . . . . . . . . . Parts Fried 19 | . . . 8 2 . 4 3 . 2 . . . . . . . . . . . . . . . . . . . . . Impact Corruptions 27 | . . . 12 . . 6 6 . 3 . . . . . . . . . . . . . . . . . . . . . Robots Melted 6 | . . . . . 1 . . . . . . . . . . . . . . . . . . . . . . 5 . . Combat Hostiles 5 | . . . . . 1 . . . . . . . . . . . . . . . . . . . . . . 4 . . Parts Melted 24 | . 1 . . 2 2 . 1 . . . . . . . . 4 1 . . . 1 . . . . . . 11 1 . Heat Transferred 7208 | . 450 . . 407 1311 555 333 . . . . . . . . 481 148 . . . . 74 . . 406 74 555 1295 962 157 Parts Sabotaged . | . . . . . . . . . . . . . . . . . . . . . . . . . . . . . . . Parts Stolen . | . . . . . . . . . . . . . . . . . . . . . . . . . . . . . . . Parts Stripped . | . . . . . . . . . . . . . . . . . . . . . . . . . . . . . . . Power Chain Reactions . | . . . . . . . . . . . . . . . . . . . . . . . . . . . . . . . Missiles Intercepted . | . . . . . . . . . . . . . . . . . . . . . . . . . . . . . . . Alert | -11 -10 -10 -9 -9 -9 -8 -8 -8 -8 -7 -7 -6 -6 -5 -5 -4 -4 -4 -4 -4 -4 -3 -3 -3 -3 -2 -2 -2 -1 -1 ------- Run | Jun Mat Min Mat Sto Gar Mat Gar Mat Gar Fac Gar Fac Gar Fac Gar Fac Ext Cet Arc Hub Gar Res Gar Res Gar Res Qua Sec Acc Com Peak Influence 6822 | . 180 . 454 401 1139 571 734 421 1004 535 669 507 553 342 1506 1024 749 826 577 864 997 728 1269 713 641 643 544 467 750 6822 Initial 790 | . . . . 122 263 555 90 357 . 527 54 350 83 289 93 790 377 251 330 138 518 476 545 713 321 360 351 141 259 465 Average 430 | . 31 . 193 266 722 286 475 289 611 247 355 282 343 190 948 704 574 564 483 526 861 388 928 407 515 283 238 172 397 1076 Maximum Alert Level 5 | . . . 2 2 4 2 3 2 3 2 2 2 2 1 4 3 3 3 2 3 3 3 4 3 2 2 2 2 3 5 Low Security (%) 25 | 100 100 100 44 33 . 25 9 29 11 61 27 25 15 52 . . . . . 10 . 14 . . . 43 33 68 1 . Level 1 31 | . . . 52 53 9 49 23 63 9 19 30 55 48 47 19 . 6 25 38 26 . 52 . 60 16 23 64 22 67 . Level 2 26 | . . . 3 12 54 25 52 6 40 19 41 19 35 . 1 53 79 37 61 22 17 27 18 16 83 33 2 8 20 36 Level 3 12 | . . . . . 31 . 14 . 39 . . . . . 41 46 13 37 . 40 82 5 53 23 . . . . 11 37 Level 4 3 | . . . . . 3 . . . . . . . . . 36 . . . . . . . 28 . . . . . . 22 Level 5 . | . . . . . . . . . . . . . . . . . . . . . . . . . . . . . . . High Security . | . . . . . . . . . . . . . . . . . . . . . . . . . . . . . . 3 Max Security . | . . . . . . . . . . . . . . . . . . . . . . . . . . . . . . . Squads Dispatched 108 | . 2 . 3 . . 2 . 1 . 6 . 8 . 8 . 7 3 1 . 5 . 14 . 6 . 10 4 14 6 8 Investigation 20 | . 1 . 1 . . . . . . 3 . 5 . 3 . . . 1 . 1 . 4 . . . 1 . . . . Extermination 34 | . . . . . . . . . . 1 . 2 . 2 . 3 . . . . . 6 . 2 . 3 4 6 3 2 Reinforcement 26 | . 1 . 2 . . 2 . . . 2 . 1 . . . 2 1 . . 2 . 1 . 1 . 3 . 5 2 1 Assault 13 | . . . . . . . . . . . . . . . . 2 2 . . . . . . . . 3 . . 1 5 Garrison 15 | . . . . . . . . 1 . . . . . 3 . . . . . 2 . 3 . 3 . . . 3 . . Intercept . | . . . . . . . . . . . . . . . . . . . . . . . . . . . . . . . Searches Triggered . | . . . . . . . . . . . . . . . . . . . . . . . . . . . . . . . Construction Impeded 5 | . . . . . . . . . . 1 . . . . . . . . . . . 1 . 1 . . . 1 1 . Haulers Reinforced 5 | . . . . . . . . . . . . . . . . 1 . . . . . . . . . 2 . 2 . . Active Scanning Responses . | . . . . . . . . . . . . . . . . . . . . . . . . . . . . . . . Cargo Convoy Interrupts . | . . . . . . . . . . . . . . . . . . . . . . . . . . . . . . . Stealth | -11 -10 -10 -9 -9 -9 -8 -8 -8 -8 -7 -7 -6 -6 -5 -5 -4 -4 -4 -4 -4 -4 -3 -3 -3 -3 -2 -2 -2 -1 -1 --------- Run | Jun Mat Min Mat Sto Gar Mat Gar Mat Gar Fac Gar Fac Gar Fac Gar Fac Ext Cet Arc Hub Gar Res Gar Res Gar Res Qua Sec Acc Com Distress Signals 43 | . 1 . 5 3 . 4 . . . 1 . . . 2 1 2 3 1 . 1 2 3 . 1 . 2 2 7 . 2 Communications Jammed . | . . . . . . . . . . . . . . . . . . . . . . . . . . . . . . . Distress Signals . | . . . . . . . . . . . . . . . . . . . . . . . . . . . . . . . Times Spotted 986 | . 10 . 43 13 23 26 24 3 31 15 18 28 1 34 31 43 42 12 15 25 25 34 28 18 27 51 22 96 39 209 Peak Tracking Total 144 | . 4 . 6 4 6 4 4 2 5 3 5 4 . 5 6 8 6 6 1 6 8 4 7 6 6 5 4 12 7 144 Tactical Retreats 39 | . . . . . 1 1 . . . 2 . 3 . 4 . . . . . . . 1 4 3 1 . . 5 4 10 Traps | -11 -10 -10 -9 -9 -9 -8 -8 -8 -8 -7 -7 -6 -6 -5 -5 -4 -4 -4 -4 -4 -4 -3 -3 -3 -3 -2 -2 -2 -1 -1 ------- Run | Jun Mat Min Mat Sto Gar Mat Gar Mat Gar Fac Gar Fac Gar Fac Gar Fac Ext Cet Arc Hub Gar Res Gar Res Gar Res Qua Sec Acc Com Traps Triggered 29 | . 5 . . . 5 . 3 . 7 2 1 . . . 1 . 1 . . . . 1 . 1 . . . 1 . 1 Indirectly . | . . . . . . . . . . . . . . . . . . . . . . . . . . . . . . . Trap Hack Attempts . | . . . . . . . . . . . . . . . . . . . . . . . . . . . . . . . Triggered . | . . . . . . . . . . . . . . . . . . . . . . . . . . . . . . . Disarmed 14 | . . . . . . . . . . . . 4 . 4 . . . . . . . . . . . . . 6 . . Reprogrammed 24 | . . . . . . . . . . 1 . . . 6 . 1 . . . . . 4 . . . 4 . . 2 6 Reused 5 | . . . . . 1 . . . . 1 . . . . . 1 . . . . . 1 . . . 1 . . . . Traps Extracted . | . . . . . . . . . . . . . . . . . . . . . . . . . . . . . . . Installed 2 | . . . . . 2 . . . . . . . . . . . . . . . . . . . . . . . . . Triggered 6 | . . . . . 1 . . . . 1 . . . . 1 1 . . . . . 1 . . . 1 . . . . Most Traps Carried 3 | . . . . . 3 . . . . . . . . . . . . . . . . . . . . . . . . . Machines | -11 -10 -10 -9 -9 -9 -8 -8 -8 -8 -7 -7 -6 -6 -5 -5 -4 -4 -4 -4 -4 -4 -3 -3 -3 -3 -2 -2 -2 -1 -1 ---------- Run | Jun Mat Min Mat Sto Gar Mat Gar Mat Gar Fac Gar Fac Gar Fac Gar Fac Ext Cet Arc Hub Gar Res Gar Res Gar Res Qua Sec Acc Com Machines Disabled 94 | . . . . 2 5 5 2 1 4 1 2 . 2 . 5 4 1 4 1 6 2 2 4 1 2 1 8 7 3 19 Max in Single Turn 18 | . . . . 1 1 1 1 1 1 . 1 . 1 . 1 1 1 1 . . 1 . 1 1 1 1 1 1 1 18 Garrison Access 6 | . . . . . . . . . . 1 . 2 . . . . . . . . . . . . . 2 . 1 . . Garrison Relay 23 | . . . . . 2 . 2 . 4 . 2 . 2 . 4 . . . . . 2 . 3 . 2 . . . . . Phase Generator 1 | . . . . . . . . . . . . . . . . . . . . . . . . . . . . . . 1 Machines Repaired . | . . . . . . . . . . . . . . . . . . . . . . . . . . . . . . . Machines Sabotaged . | . . . . . . . . . . . . . . . . . . . . . . . . . . . . . . . Overloaded Fab Kills . | . . . . . . . . . . . . . . . . . . . . . . . . . . . . . . . Hacking | -11 -10 -10 -9 -9 -9 -8 -8 -8 -8 -7 -7 -6 -6 -5 -5 -4 -4 -4 -4 -4 -4 -3 -3 -3 -3 -2 -2 -2 -1 -1 --------- Run | Jun Mat Min Mat Sto Gar Mat Gar Mat Gar Fac Gar Fac Gar Fac Gar Fac Ext Cet Arc Hub Gar Res Gar Res Gar Res Qua Sec Acc Com Machines Accessed 193 | . 8 . 10 1 4 11 2 2 4 19 1 22 1 18 1 6 8 1 . 4 2 11 2 3 4 11 8 15 7 7 Terminals 132 | . 7 . 7 . 4 9 2 1 4 11 1 11 1 10 1 6 8 1 . 3 2 4 2 1 4 4 7 11 6 4 Fabricators 14 | . . . . . . . . . . 3 . 3 . 3 . . . . . . . 3 . . . 2 . . . . Repair Stations 6 | . . . . . . . . . . 1 . 1 . . . . . . . . . 1 . . . 1 . 1 . 1 Recycling Units 11 | . 1 . 1 . . 1 . . . 1 . 2 . 2 . . . . . . . . . . . . . . 1 2 Scanalyzers 14 | . . . 2 . . . . . . 1 . 2 . 1 . . . . . . . 2 . 1 . 2 1 2 . . Garrison Access 16 | . . . . 1 . 1 . 1 . 2 . 3 . 2 . . . . . 1 . 1 . 1 . 2 . 1 . . Total Hacks 673 | . 19 . 28 1 8 45 6 8 14 72 3 84 3 63 1 19 13 5 . 13 10 54 6 11 12 51 26 49 19 30 Successful 390 | . 8 . 16 1 3 20 2 5 3 47 1 50 1 46 1 9 8 . . 6 5 34 3 8 5 29 17 34 7 21 Failed 282 | . 11 . 12 . 5 25 4 3 11 25 2 34 2 16 . 10 5 5 . 7 5 20 3 3 7 22 9 15 12 9 Catastrophic 37 | . 2 . 2 . 3 1 . . 2 2 2 6 . 2 . 2 1 1 . 3 2 1 . . 2 1 . . 2 . Database Lockouts 1 | . . . . . . . . . . . . . . 1 . . . . . . . . . . . . . . . . Manual 295 | . 8 . 14 . 1 29 2 . 6 35 2 40 . 29 . 9 . 1 . 6 7 14 3 4 4 12 13 30 8 18 Terminals 471 | . 17 . 23 . 8 41 6 6 14 39 3 45 3 37 1 19 13 5 . 12 10 25 6 8 12 23 25 36 17 17 Fabricators 52 | . . . . . . . . . . 12 . 9 . 9 . . . . . . . 14 . . . 8 . . . . Repair Stations 21 | . . . . . . . . . . 5 . 3 . . . . . . . . . 5 . . . 1 . 4 . 3 Recycling Units 39 | . 2 . 1 . . 3 . . . 5 . 7 . 9 . . . . . . . . . . . . . . 2 10 Scanalyzers 64 | . . . 4 . . . . . . 7 . 15 . 4 . . . . . . . 9 . 1 . 15 1 8 . . Garrison Access 26 | . . . . 1 . 1 . 2 . 4 . 5 . 4 . . . . . 1 . 1 . 2 . 4 . 1 . . Terminal Hacks 167 | . 4 . 10 . 3 13 2 3 3 14 1 12 1 17 1 5 8 . . 4 5 8 3 5 5 6 11 11 6 6 Part Schematic 9 | . . . 1 . . 1 . . . 1 . 1 . 4 . . . . . . . . . . . 1 . . . . Robot Schematic 5 | . . . . . . 1 . . . 1 . . . 2 . . . . . . . 1 . . . . . . . . Prototype ID Bank 9 | . . . 3 . . 2 . . . . . 1 . 1 . . . . . . . 1 . . . . 1 . . . Open Door 13 | . . . . . 1 . . . . . . . . . 1 1 7 . . . . . . . 1 . 1 . 1 . Level Access Points 2 | . . . . . . . . . . . . . . . . . . . . . . . . . . . . 1 . 1 Branch Access Points 5 | . 1 . 1 . . . . . . . . . . . . . . . . . . 1 . 1 . 1 . . . . Emergency Access Points 7 | . . . . . 1 . 1 . 1 . 1 . 1 . . . . . . . 1 . . . 1 . . . . . Machine Index 7 | . . . . . . . . . . 1 . 1 . 1 . . . . . 1 . 1 . . . 1 . 1 . . Terminal Index 9 | . 1 . . . . 1 . . . . . 1 . 1 . 1 . . . 1 . . . 1 . . 1 . 1 . Fabricator Index 1 | . . . . . . . . . . . . 1 . . . . . . . . . . . . . . . . . . Garrison Index 4 | . . . . . . 1 . . . . . . . 1 . 1 . . . . . . . . . . . 1 . . Unreport Threat 24 | . . . 1 . . 2 . 2 . 1 . 3 . 2 . . 1 . . 2 1 . . 3 . 2 2 2 . . Locate Traps 16 | . 1 . 2 . . . . 1 . 3 . 1 . 1 . . . . . . . 1 . . . . 1 1 1 3 Disarm Traps 4 | . . . . . . . . . . . . 1 . 1 . . . . . . . . . . . . . 1 1 . Reprogram Traps 10 | . . . . . . . . . . 1 . . . 2 . 2 . . . . . 1 . . . 1 . . 1 2 Maintenance Status 1 | . . . . . . . . . . . . . . . . . . . . . . . . . . . 1 . . . Recall Investigation 1 | . . . . . . . . . . 1 . . . . . . . . . . . . . . . . . . . . Recall Extermination 2 | . . . . . . . . . . 1 . . . . . . . . . . . 1 . . . . . . . . Recall Reinforcements 1 | . . . . . . . . . . . . 1 . . . . . . . . . . . . . . . . . . Recall Assault 1 | . . . . . . . . . . . . . . . . . . . . . . . . . . . . 1 . . Hauler Manifests 4 | . . . 1 . . 2 . . . 1 . . . . . . . . . . . . . . . . . . . . Zone Layout 19 | . 1 . 1 . . 3 . . . 3 . 1 . 1 . . . . . . . 1 . . . . 4 3 1 . Garrison Registry 5 | . . . . . . . 1 . . . . . . . . . . . . . 1 . 1 . 2 . . . . . Patrol Navigation 6 | . . . . . 1 . . . 1 . . . . . . . . . . . 2 . 1 . 1 . . . . . Security Stations 2 | . . . . . . . . . 1 . . . . . . . . . . . . . 1 . . . . . . . Fabricator Hacks 33 | . . . . . . . . . . 6 . 3 . 6 . . . . . . . 12 . . . 6 . . . . Load Schematic 17 | . . . . . . . . . . 4 . 1 . 3 . . . . . . . 6 . . . 3 . . . . Build 16 | . . . . . . . . . . 2 . 2 . 3 . . . . . . . 6 . . . 3 . . . . Repair Station Hacks 10 | . . . . . . . . . . 2 . 2 . . . . . . . . . 2 . . . . . 2 . 2 Scan Component 5 | . . . . . . . . . . 1 . 1 . . . . . . . . . 1 . . . . . 1 . 1 Repair 5 | . . . . . . . . . . 1 . 1 . . . . . . . . . 1 . . . . . 1 . 1 Recycling Unit Hacks 10 | . 1 . . . . 2 . . . 1 . 2 . 2 . . . . . . . . . . . . . . . 2 Report Inventory 8 | . 1 . . . . 1 . . . 1 . 2 . 2 . . . . . . . . . . . . . . . 1 Retrieve Components 2 | . . . . . . 1 . . . . . . . . . . . . . . . . . . . . . . . 1 Scanalyzer 48 | . . . 4 . . . . . . 5 . 14 . 4 . . . . . . . 6 . . . 10 . 5 . . Insert Component 27 | . . . 2 . . . . . . 2 . 7 . 2 . . . . . . . 3 . . . 6 . 5 . . Analyze 21 | . . . 2 . . . . . . 3 . 7 . 2 . . . . . . . 3 . . . 4 . . . . Garrison Access Hacks 24 | . . . . 1 . 1 . 2 . 4 . 5 . 2 . . . . . 1 . 1 . 2 . 4 . 1 . . Unlock Access 10 | . . . . 1 . 1 . 1 . 1 . 1 . 2 . . . . . 1 . 1 . 1 . . . . . . Seal Access 6 | . . . . . . . . . . 1 . 2 . . . . . . . . . . . . . 2 . 1 . . Coupler Status 8 | . . . . . . . . 1 . 2 . 2 . . . . . . . . . . . 1 . 2 . . . . Unauthorized Hacks 98 | . 3 . 2 . . 4 . . . 15 . 12 . 15 . 4 . . . 1 . 5 . 1 . 3 6 15 1 11 Terminals 63 | . 2 . 1 . . 4 . . . 8 . 7 . 7 . 4 . . . 1 . 3 . 1 . 2 5 13 1 4 Track 19 | . . . . . . . . . . 1 . 2 . . . 1 . . . . . 2 . . . . 2 9 . 2 Assimilate 14 | . . . . . . 1 . . . 3 . 1 . 4 . 1 . . . . . . . . . . 1 2 1 . Botnet 20 | . 1 . . . . 2 . . . 3 . 3 . 2 . 2 . . . 1 . 1 . . . 2 1 1 . 1 Operators 10 | . 1 . 1 . . 1 . . . 1 . 1 . 1 . . . . . . . . . 1 . . 1 1 . 1 Fabricators 12 | . . . . . . . . . . 6 . 2 . 2 . . . . . . . 2 . . . . . . . . Report 3 | . . . . . . . . . . 1 . 1 . . . . . . . . . 1 . . . . . . . . Prioritize 1 | . . . . . . . . . . 1 . . . . . . . . . . . . . . . . . . . . Liberate 1 | . . . . . . . . . . 1 . . . . . . . . . . . . . . . . . . . . Haulers 3 | . . . . . . . . . . 1 . 1 . . . . . . . . . 1 . . . . . . . . Recompile 4 | . . . . . . . . . . 2 . . . 2 . . . . . . . . . . . . . . . . Repair Stations 4 | . . . . . . . . . . . . 1 . . . . . . . . . . . . . 1 . 1 . 1 Mechanics 4 | . . . . . . . . . . . . 1 . . . . . . . . . . . . . 1 . 1 . 1 Recycling Units 15 | . 1 . 1 . . . . . . 1 . 2 . 4 . . . . . . . . . . . . . . . 6 Reject 3 | . . . . . . . . . . . . . . 1 . . . . . . . . . . . . . . . 2 Recyclers 3 | . . . . . . . . . . . . . . 1 . . . . . . . . . . . . . . . 2 Mask 7 | . . . . . . . . . . 1 . 2 . 2 . . . . . . . . . . . . . . . 2 Tunnel 2 | . 1 . 1 . . . . . . . . . . . . . . . . . . . . . . . . . . . Scanalyzers 2 | . . . . . . . . . . . . . . . . . . . . . . . . . . . 1 1 . . Researchers 2 | . . . . . . . . . . . . . . . . . . . . . . . . . . . 1 1 . . Garrison Access 2 | . . . . . . . . . . . . . . 2 . . . . . . . . . . . . . . . . Decoy 1 | . . . . . . . . . . . . . . 1 . . . . . . . . . . . . . . . . Watchers 1 | . . . . . . . . . . . . . . 1 . . . . . . . . . . . . . . . . Data Cores Recovered 1 | . . . . . . . . . . . . . . . . . . . . 1 . . . . . . . . . . Used . | . . . . . . . . . . . . . . . . . . . . . . . . . . . . . . . Hacking Detections 155 | . 7 . 8 . 4 10 2 2 4 16 1 18 1 15 . 5 2 1 . 3 2 8 1 3 3 8 6 12 6 7 Full Trace Events 17 | . . . . . . . 1 . 3 1 1 5 . 1 . . . 1 . 1 . 2 . . . 1 . . . . Feedback Events 3 | . . . . . . . . . . . . 2 . . . . . . . 1 . . . . . . . . . . Corruption 2 | . . . . . . . . . . . . 1 . . . . . . . 1 . . . . . . . . . . Hackware Fried 1 | . . . . . . . . . . . . 1 . . . . . . . . . . . . . . . . . . Feedback Blocked . | . . . . . . . . . . . . . . . . . . . . . . . . . . . . . . . Robot Schematics Acquired 9 | . . . . . . 1 . . . 1 . . . 2 . . . . . . . 1 . . . . . 4 . . Robots Built 28 | . . . . . . . . . . 4 . 5 . 6 . . . . . . . 9 . . . 4 . . . . Authchips 9 | . . . . . . . . . . 2 . . . 1 . . . . . . . 4 . . . 2 . . . . Time 989 | . . . . . . . . . . 134 . 105 . 252 . . . . . . . 328 . . . 170 . . . . Total Robot Build Rating 168 | . . . . . . . . . . 16 . 17 . 33 . . . . . . . 70 . . . 32 . . . . Part Schematics Acquired 39 | . . . 3 . . 1 . . . 2 . 7 . 6 . . . . . . . 3 . . . 5 4 8 . . Parts Built 2 | . . . . . . . . . . . . . . . . . . . . . . 1 . . . 1 . . . . Authchips . | . . . . . . . . . . . . . . . . . . . . . . . . . . . . . . . Time 97 | . . . . . . . . . . . . . . . . . . . . . . 35 . . . 62 . . . . Total Part Build Rating 13 | . . . . . . . . . . . . . . . . . . . . . . 6 . . . 7 . . . . Parts Repaired 5 | . . . . . . . . . . 1 . 1 . . . . . . . . . 1 . . . . . 1 . 1 Time 189 | . . . . . . . . . . 39 . 32 . . . . . . . . . 33 . . . . . 49 . 36 Parts Recycled . | . . . . . . . . . . . . . . . . . . . . . . . . . . . . . . . Recycled Matter . | . . . . . . . . . . . . . . . . . . . . . . . . . . . . . . . Retrieved Matter . | . . . . . . . . . . . . . . . . . . . . . . . . . . . . . . . Retrieved Components 6 | . . . . . . 3 . . . . . . . . . . . . . . . . . . . . . . . 3 Parts Scanalyzed 19 | . . . 2 . . . . . . 1 . 6 . 2 . . . . . . . 3 . . . 5 . . . . Part Schematics Acquired 18 | . . . 2 . . . . . . 1 . 6 . 2 . . . . . . . 3 . . . 4 . . . . Parts Damaged 4 | . . . . . . . . . . 1 . 1 . 2 . . . . . . . . . . . . . . . . Bothacking | -11 -10 -10 -9 -9 -9 -8 -8 -8 -8 -7 -7 -6 -6 -5 -5 -4 -4 -4 -4 -4 -4 -3 -3 -3 -3 -2 -2 -2 -1 -1 ------------ Run | Jun Mat Min Mat Sto Gar Mat Gar Mat Gar Fac Gar Fac Gar Fac Gar Fac Ext Cet Arc Hub Gar Res Gar Res Gar Res Qua Sec Acc Com Used RIF Installer 8 | . . . . . 1 . 1 . 1 . 1 . 1 . 1 . . . . . 1 . . . 1 . . . . . Coupler Efficiency 1 | . . . . . . . . . . . . . . . 1 . . . . . . . . . . . . . . . Hotswap 1 | . . . . . . . . . 1 . . . . . . . . . . . . . . . . . . . . . Zone Cloak 1 | . . . . . . . 1 . . . . . . . . . . . . . . . . . . . . . . . Patrol Navigation 1 | . . . . . . . . . . . . . . . . . . . . . 1 . . . . . . . . . Program Shield 1 | . . . . . . . . . . . . . 1 . . . . . . . . . . . . . . . . . Autooverride 1 | . . . . . . . . . . . . . . . . . . . . . . . . . 1 . . . . . Autoassimilate 1 | . . . . . . . . . . . 1 . . . . . . . . . . . . . . . . . . . Robots Hacked 244 | . . . . . . 6 7 . 5 7 9 13 . 21 14 23 18 1 . 2 5 20 6 6 13 32 14 19 2 1 Non-combat 61 | . . . . . . 2 . . . 3 . 5 . 8 . 8 1 . . . . 8 . 1 . 11 6 5 2 1 Combat 183 | . . . . . . 4 7 . 5 4 9 8 . 13 14 15 17 1 . 2 5 12 6 5 13 21 8 14 . . Autooverrided 5 | . . . . . . . . . . . . . . . . . . . . . . . . . 1 1 1 2 . . Autoassimilated 17 | . . . . . . . . . . . 3 1 . 1 1 1 3 1 . . 1 1 . . 1 2 1 . . . Robot Hacks Applied 260 | . . . . . . 7 7 . 5 8 6 16 . 23 13 27 17 . . 2 4 22 6 6 13 31 22 21 3 1 parse_system 16 | . . . . . . . . . . . . 1 . 1 . 2 4 . . . . 3 . . 1 . 2 2 . . find_chute 1 | . . . . . . . . . . 1 . . . . . . . . . . . . . . . . . . . . ignore_repairs 10 | . . . . . . . . . . . . . . 1 . . . . . . . . . . . 1 2 3 3 . find_fabricator 6 | . . . . . . . . . . 1 . 2 . 2 . . . . . . . 1 . . . . . . . . drop_inventory 19 | . . . . . . . . . . 1 . 4 . 3 . 1 . . . . . 4 . . . 4 1 1 . . recall_reinforcements 1 | . . . . . . . . . . . . . . . . . . . . . . . . . . 1 . . . . find_recycling 3 | . . . . . . . . . . . . 1 . . . 1 . . . . . 1 . . . . . . . . ignore_parts 6 | . . . . . . . . . . . . 1 . . . . . . . . . 3 . . . 1 . 1 . . release_backups 1 | . . . . . . . . . . . . . . 1 . . . . . . . . . . . . . . . . purge_threat 7 | . . . . . . 1 . . . . . . . . . 3 1 . . . . . . . . 1 . 1 . . block_reporting 2 | . . . . . . . . . . . . . . . . 1 . . . . . . . . . 1 . . . . map_route 6 | . . . . . . . . . . . . . . 1 . 2 . . . . . 1 . . . 1 1 . . . find_scanalyzer 1 | . . . . . . . . . . . . . . . . . . . . . . . . . . . . 1 . . disable_scanner 2 | . . . . . . . . . . . . . . . . . . . . . . . . . . . 1 1 . . locate_prototypes 2 | . . . . . . . . . . . . . . . . . . . . . . . . . . . 2 . . . report_analyses 8 | . . . . . . . . . . . . . . . . . . . . . . . . . . . 8 . . . overload_power 1 | . . . . . . . . . . . . . . 1 . . . . . . . . . . . . . . . . amplify_resonance 20 | . . . . . . . . . . . . 1 . 2 3 3 1 . . . 1 . 2 1 1 3 . 2 . . wipe_record 1 | . . . . . . . . . . . . . . . . . . . . . . . . . . . . 1 . . reboot_system 25 | . . . . . . 2 3 . 1 . 1 1 . 1 1 1 7 . . . . 1 . 2 1 3 . . . . overwrite_iff 28 | . . . . . . 1 2 . . . 1 . . 5 3 2 1 . . 1 1 3 . . 2 5 . 1 . . formatsys_low 12 | . . . . . . 2 . . . 1 . . . 2 . 1 . . . . . . . 1 . 1 2 2 . . formatsys_high 81 | . . . . . . 1 2 . 4 4 4 5 . 3 6 10 3 . . 1 2 5 3 2 8 9 3 5 . 1 formatsys_deep 1 | . . . . . . . . . . . . . . . . . . . . . . . 1 . . . . . . . Relay Couplers Released 101 | . . . . . 7 . 7 . 18 . 8 . 11 . 13 . . . . . 9 . 13 3 9 3 . . . . Machine Destruction 91 | . . . . . 7 . 7 . 18 . 8 . 7 . 13 . . . . . 9 . 13 . 9 . . . . . Programmers 10 | . . . . . . . . . . . . . 4 . . . . . . . . . . 3 . 3 . . . . Attached 72 | . . . . . . 3 2 . 4 3 2 3 5 2 8 5 1 1 . . 4 1 9 2 8 4 3 2 . . Fabnet Peak Effective % . | . . . . . . . . . . . . . . . . . . . . . . . . . . . . . . . Robots Rewired 36 | . . . . . 3 . 3 . . . . . 8 . 3 . 19 . . . . . . . . . . . . . Allies Hacked 11 | . . . . . . . . . . . 1 . 1 1 . 1 1 . . . . 4 . . . 1 1 . . . Hacks Repelled 3 | . . . . . . . . . . . . 2 . . . . . . . . . . . . . 1 . . . . Allies | -11 -10 -10 -9 -9 -9 -8 -8 -8 -8 -7 -7 -6 -6 -5 -5 -4 -4 -4 -4 -4 -4 -3 -3 -3 -3 -2 -2 -2 -1 -1 -------- Run | Jun Mat Min Mat Sto Gar Mat Gar Mat Gar Fac Gar Fac Gar Fac Gar Fac Ext Cet Arc Hub Gar Res Gar Res Gar Res Qua Sec Acc Com Total Allies 241 | . . . . . 5 4 7 . 4 12 9 12 8 20 13 14 35 6 . 2 4 22 4 5 12 23 7 11 1 1 Largest Group 24 | . . . . . 5 6 1 3 2 8 8 12 18 21 18 17 24 16 16 15 7 11 3 5 4 12 7 7 1 1 Highest-Rated Group 1244 | . . . . . 141 144 24 72 48 162 162 331 622 729 722 783 1244 1110 1110 969 477 723 220 229 256 753 378 289 45 45 Highest-Rated Ally 159 | . . . . . 39 39 24 24 24 37 37 90 90 93 96 137 159 144 144 137 137 82 82 56 64 82 89 69 45 45 Total Orders 370 | . . . . . . 1 . . 8 16 27 40 3 43 41 18 19 2 5 6 2 17 8 5 7 33 37 22 8 2 STAY 183 | . . . . . . . . . 4 7 17 21 1 23 21 5 7 . 2 3 1 11 5 2 3 18 20 12 . . ROAM 5 | . . . . . . . . . . . . . 1 3 1 . . . . . . . . . . . . . . . FOLLOW 126 | . . . . . . . . . 4 6 8 12 1 10 13 9 6 1 2 2 1 6 3 1 4 12 14 9 2 . AID 43 | . . . . . . 1 . . . 3 2 7 . 4 4 4 6 1 1 1 . . . 2 . 3 3 1 . . DROP 3 | . . . . . . . . . . . . . . 3 . . . . . . . . . . . . . . . . PICKUP 1 | . . . . . . . . . . . . . . . 1 . . . . . . . . . . . . . . . COLLECT 1 | . . . . . . . . . . . . . . . 1 . . . . . . . . . . . . . . . EXPLORE 8 | . . . . . . . . . . . . . . . . . . . . . . . . . . . . . 6 2 Ally Attacks 1794 | . . . . . 30 68 33 13 20 26 54 103 7 93 117 112 205 78 18 157 42 141 31 33 52 209 88 64 . . Total Damage 57008 | . . . . . 455 987 403 245 351 799 1208 2263 118 1970 4158 4560 6917 3908 578 6110 1749 5072 921 1190 2085 6762 2590 1609 . . Kills 326 | . . . . . 5 8 6 3 3 8 15 19 2 12 30 25 33 16 4 25 9 28 10 7 4 38 12 4 . . Allies Corrupted 17 | . . . . . . 1 . . . . . . . 2 . 3 . . . . . 5 . . 1 1 3 . 1 . Allies Melted 6 | . . . . . . . . . . . . . . . . . 1 1 . . . . . . 1 1 . 2 . . Intel | -11 -10 -10 -9 -9 -9 -8 -8 -8 -8 -7 -7 -6 -6 -5 -5 -4 -4 -4 -4 -4 -4 -3 -3 -3 -3 -2 -2 -2 -1 -1 ------- Run | Jun Mat Min Mat Sto Gar Mat Gar Mat Gar Fac Gar Fac Gar Fac Gar Fac Ext Cet Arc Hub Gar Res Gar Res Gar Res Qua Sec Acc Com Robot Analysis Total . | . . . . . . . . . . . . . . . . . . . . . . . . . . . . . . . Derelict Logs Recovered 1 | . . 1 . . . . . . . . . . . . . . . . . . . . . . . . . . . . Drone Launches 7 | . . . . . . . . . . . . . . . . . . . . . . . . . . . . . 5 2 Drone Recoveries 5 | . . . . . . . . . . . . . . . . . . . . . . . . . . . . . 4 1 Exploration | -11 -10 -10 -9 -9 -9 -8 -8 -8 -8 -7 -7 -6 -6 -5 -5 -4 -4 -4 -4 -4 -4 -3 -3 -3 -3 -2 -2 -2 -1 -1 ------------- Run | Jun Mat Min Mat Sto Gar Mat Gar Mat Gar Fac Gar Fac Gar Fac Gar Fac Ext Cet Arc Hub Gar Res Gar Res Gar Res Qua Sec Acc Com Turns Passed 43032 | 49 968 158 1854 316 1764 1367 1131 407 1459 2080 1600 3266 1051 2152 2204 1092 1723 281 636 436 658 3063 1299 725 1142 2288 2143 2982 1396 1342 Spaces Moved 28154 | 40 741 122 951 127 889 704 641 193 700 2772 896 3409 627 3274 1249 570 881 142 335 242 286 1499 555 355 496 1300 1188 1473 805 692 Core 28 | 2 . . . . . . . . . . . . . . . . . . . . . . . . . . . . . 26 Treads 17126 | . . . 766 127 889 704 176 . . . 790 1186 627 231 1249 570 881 142 335 242 286 1499 555 355 496 1300 1188 1342 685 505 Legs 1 | . . . . . . . 1 . . . . . . . . . . . . . . . . . . . . . . . Wheels 2992 | 38 741 122 185 . . . 464 193 700 443 106 . . . . . . . . . . . . . . . . . . . Hover . | . . . . . . . . . . . . . . . . . . . . . . . . . . . . . . . Flight 7595 | . . . . . . . . . . 2329 . 2223 . 3043 . . . . . . . . . . . . . . . . Fastest Speed 40 | 50 90 125 125 145 145 145 125 140 140 40 150 40 160 40 160 160 160 160 160 160 160 160 145 145 145 152 152 135 147 50 Average Speed 123 | 86 114 125 141 145 166 147 140 140 163 58 158 81 160 48 160 161 160 166 160 160 160 170 180 146 161 156 152 148 147 142 Slowest Speed 250 | 90 125 125 240 145 225 225 225 140 165 165 160 160 160 160 160 240 160 250 160 160 160 250 250 225 250 160 160 227 147 147 Overloaded Moves . | . . . . . . . . . . . . . . . . . . . . . . . . . . . . . . . Propulsion Burnouts . | . . . . . . . . . . . . . . . . . . . . . . . . . . . . . . . Robots Hopped 40 | . . . . . . . . . . 6 . 24 . 10 . . . . . . . . . . . . . . . . Cave-ins Triggered 1 | . . . . . . . . . . . . . . . . . . . . . . . . . . 1 . . . . Microwarps 25 | . . . . . . . . . . . . . . . . . . . . . . . . . . . . 9 5 11 Exploration Rate (%) 50 | 3 91 27 69 24 83 50 65 15 78 42 79 38 82 38 91 11 96 58 96 24 41 30 58 11 64 27 81 46 22 33 Regions Visited 30 Branch Regions 9 Pre-discovered Areas 3 | . 1 1 1 . . . . . . . . . . . . . . . . . . . . . . . . . . . Known Exits Taken 17 | . 1 . 1 1 . 1 . 1 . 1 . 1 . 1 . 1 1 1 1 1 . 1 . 1 . 1 . 1 . . Unknown Exits Taken 4 | 1 . 1 . . . . . . . . . . . . . . . . . . . . . . . . 1 . 1 . Scrap Searched . | . . . . . . . . . . . . . . . . . . . . . . . . . . . . . . . Spaces Dug 370 | . 9 . 9 . 8 4 14 . 10 36 24 20 . 24 16 1 34 . . 3 . 31 10 . 15 13 15 32 32 10 Terrain Destroyed 2697 | . 20 . 9 . 17 7 34 . 38 40 51 20 . 24 16 4 48 . . 4 1 34 31 . 19 15 18 78 47 2122 Melee 189 | . . . 9 . 6 3 3 . 2 32 11 20 . 24 16 1 . . . 3 . 1 5 . 7 8 7 17 12 2 Projectile 140 | . . . . . . 4 1 . 3 . 1 . . . . 3 5 . . 1 1 17 16 . 12 7 11 22 28 8 AOE 2360 | . 20 . . . 11 . 30 . 33 8 39 . . . . . 43 . . . . 16 10 . . . . 38 7 2105 Terrain Rammed . | . . . . . . . . . . . . . . . . . . . . . . . . . . . . . . . Walls Destroyed . | . . . . . . . . . . . . . . . . . . . . . . . . . . . . . . . Machines Disabled . | . . . . . . . . . . . . . . . . . . . . . . . . . . . . . . . Actions | -11 -10 -10 -9 -9 -9 -8 -8 -8 -8 -7 -7 -6 -6 -5 -5 -4 -4 -4 -4 -4 -4 -3 -3 -3 -3 -2 -2 -2 -1 -1 --------- Run | Jun Mat Min Mat Sto Gar Mat Gar Mat Gar Fac Gar Fac Gar Fac Gar Fac Ext Cet Arc Hub Gar Res Gar Res Gar Res Qua Sec Acc Com Total 33996 | 51 811 126 1294 201 1080 922 792 319 908 3163 1016 3800 667 3768 1377 687 1137 181 402 277 425 1871 763 542 724 1497 1431 1977 909 878 Wait 2648 | . 9 3 148 29 77 87 34 90 17 257 35 252 3 374 28 22 114 20 33 17 51 182 96 126 74 49 81 201 31 108 Move 27663 | 39 740 121 950 127 888 704 640 193 699 2759 895 3362 626 3253 1248 569 880 141 334 242 285 1499 554 355 495 1298 1187 1350 689 541 Hop 38 | . . . . . . . . . . 6 . 22 . 10 . . . . . . . . . . . . . . . . Pick Up 396 | 6 12 . 24 3 13 12 9 9 19 29 10 34 10 20 11 6 10 3 3 . 12 13 9 7 14 16 20 29 20 13 Fast Attach 118 | 6 8 . 5 . . 4 . 1 . 5 1 6 . 11 2 1 5 1 2 . 4 7 8 . 11 14 2 6 5 3 Attach 226 | . 1 . 3 3 4 3 10 3 2 11 2 14 . 5 2 7 4 2 1 . 3 8 10 7 12 6 7 56 20 20 Detach 109 | . 1 . . . 1 . 4 . . 2 3 6 . 1 . 1 1 2 . . 4 3 6 5 6 2 2 41 9 9 Swap 570 | . 9 2 35 7 19 33 24 7 29 13 10 11 7 4 12 16 27 8 2 10 14 47 17 9 29 16 32 52 21 48 Drop 328 | . 7 . 33 2 11 12 1 9 18 16 10 26 6 23 7 . 5 2 5 . 10 13 6 4 7 19 20 23 16 17 Fire 1162 | . 24 . 72 28 39 36 33 1 53 9 25 36 12 32 22 59 82 2 . 4 38 93 43 29 58 62 60 97 50 63 Melee 609 | . . . 24 2 22 28 23 6 12 44 23 27 2 33 43 6 4 . 22 4 2 2 13 . 17 11 18 120 48 53 Ram . | . . . . . . . . . . . . . . . . . . . . . . . . . . . . . . . Kick . | . . . . . . . . . . . . . . . . . . . . . . . . . . . . . . . Crush 14 | . . . . . . . . . . . . 1 . . . . 1 . . . 1 4 . . . 3 1 . . 3 Escape Stasis 87 | . . . . . 4 . 12 . 56 8 2 . . . 1 . 3 . . . . . . . . 1 . . . . Rewire 26 | . . . . . . 3 2 . 3 4 . 3 1 2 1 . 1 . . . 1 . 1 . 1 . 1 2 . . Trap 2 | . . . . . 2 . . . . . . . . . . . . . . . . . . . . . . . . . Miscellaneous . | . . . . . . . . . . . . . . . . . . . . . . . . . . . . . . . Route ------- -11/Junkyard -10/Materials (discovered 4 exits: *Mat x2 / *Min x2) -10/Mines -9/Materials (discovered 4 exits: *Mat x2 / *Min / *Sto) -9/Storage -9/Garrison (discovered 3 exits: *Mat x3) -8/Materials (discovered 2 exits: *Fac / Gar) -8/Garrison (discovered 4 exits: *Mat x4) -8/Materials -8/Garrison (discovered 2 exits: *Fac x2) -7/Factory (discovered 3 exits: *Fac x2 / Gar) -7/Garrison (discovered 2 exits: *Fac x2) -6/Factory -6/Garrison (discovered 3 exits: *Fac x3) -5/Factory (discovered 4 exits: *Fac x2 / Gar / Gar) -5/Garrison (discovered 3 exits: *Fac x3) -4/Factory (discovered 2 exits: *Upp / *Ext) -4/Extension (discovered 2 exits: *Res / *Cet) -4/Cetus -4/Archives (discovered 3 exits: *Res / *Hub x2) -4/Hub_04(d) (discovered 2 exits: *Res / Gar) -4/Garrison (discovered 3 exits: *Res x3) -3/Research (discovered 3 exits: *Tes x2 / Gar) -3/Garrison (discovered 3 exits: *Res x3) -3/Research (discovered 3 exits: Tes x2 / Gar) -3/Garrison (discovered 3 exits: *Res x3) -2/Research (discovered 3 exits: *Acc / *Qua x2) -2/Quarantine (discovered 2 exits: *Acc / *Sec) -2/Section 7 -1/Access -1/Command (discovered 2 exits: *Sur x2) To Epsilon Eridani History --------- Turn | Location | Event 20 | -11/Junkyard | Discovered new exit (range 16) 50 | -11/Junkyard | Entered Materials 248 | -10/Materials | Identified exit to Mines 344 | -10/Materials | Build established: Mutant 400 | -10/Materials | Discovered new exit (range 14) 558 | -10/Materials | Discovered new exit (range 16) 1018 | -10/Materials | Entered Mines 1023 | -10/Mines | Learned Materials non-interactive machine intel 1030 | -10/Mines | Met a Derelict bent on vengeance 1053 | -10/Mines | Deemed a non-threat by the Exiles lab entrance 1156 | -10/Mines | Discovered new exit (range 7) 1176 | -10/Mines | Entered Materials 1176 | -9/Materials | Evolved 2 slots: Utility x2 1177 | -9/Materials | Loaded intel: 35 non-interactive machine locations 1566 | -9/Materials | Discovered new exit (range 4) 1758 | -9/Materials | Identified exit to Mines 1758 | -9/Materials | Identified exit to Storage 2760 | -9/Materials | Discovered new exit (range 4) 3030 | -9/Materials | Entered Storage 3265 | -9/Storage | Core integrity fell below 50% 3333 | -9/Storage | Lost 3 parts (1n1u1w) 3346 | -9/Storage | Identified exit to Garrison 3346 | -9/Storage | Entered Garrison 3426 | -9/Garrison | Triggered checkpoint 3428 | -9/Garrison | Triggered checkpoint 3691 | -9/Garrison | Discovered new exit (range 13) 4053 | -9/Garrison | Discovered new exit (range 8) 4070 | -9/Garrison | Identified exit to Materials 4154 | -9/Garrison | Spotted B-75 Beast 4402 | -9/Garrison | Triggered checkpoint 4547 | -9/Garrison | Rescued a captive Derelict 4548 | -9/Garrison | Rescued a captive Derelict 4708 | -9/Garrison | Triggered checkpoint 4796 | -9/Garrison | Installed Relay Interface Framework 4884 | -9/Garrison | Spotted B-75 Beast 4888 | -9/Garrison | Discovered exit to Materials (range 11) 4909 | -9/Garrison | Destroyed B-75 Beast 4928 | -9/Garrison | Triggered checkpoint 4978 | -9/Garrison | Garrison Relay disabled 5046 | -9/Garrison | Garrison Relay disabled 5110 | -9/Garrison | Entered Materials 5110 | -8/Materials | Accompanied by 4 allies 5110 | -8/Materials | Evolved 2 slots: Utility x2 5623 | -8/Materials | Discovered new exit (range 11) 6477 | -8/Materials | Identified exit to Garrison 6477 | -8/Materials | Entered Garrison 6492 | -8/Garrison | Triggered checkpoint 6529 | -8/Garrison | Garrison Relay disabled 6829 | -8/Garrison | Build established: Bothacker-Mutant 6840 | -8/Garrison | Triggered checkpoint 7103 | -8/Garrison | Discovered new exit (range 10) 7170 | -8/Garrison | Triggered checkpoint 7191 | -8/Garrison | Discovered new exit (range 42) 7191 | -8/Garrison | Discovered new exit (range 50) 7191 | -8/Garrison | Discovered new exit (range 42) 7191 | -8/Garrison | Discovered new exit (range 54) 7206 | -8/Garrison | Triggered checkpoint 7248 | -8/Garrison | Build established: Hacker-Mutant 7278 | -8/Garrison | Expanded RIF knowledge: Zone Cloak 7310 | -8/Garrison | Triggered checkpoint 7372 | -8/Garrison | Triggered checkpoint 7447 | -8/Garrison | Garrison Relay disabled 7608 | -8/Garrison | Entered Materials 7608 | -8/Materials | Accompanied by 3 allies 7750 | -8/Materials | Build established: Bothacker-Mutant 7850 | -8/Materials | Garrison activated, responded to threat 8015 | -8/Materials | Identified exit to Garrison 8015 | -8/Materials | Entered Garrison 8015 | -8/Garrison | Accompanied by 2 allies 8077 | -8/Garrison | Garrison Relay disabled 8199 | -8/Garrison | Triggered checkpoint 8229 | -8/Garrison | Destroyed 9 combat bots 8407 | -8/Garrison | Discovered new exit (range 12) 8512 | -8/Garrison | Triggered checkpoint 8542 | -8/Garrison | Learned Factory security intel 8560 | -8/Garrison | Garrison Relay disabled 8725 | -8/Garrison | Discovered new exit (range 4) 8742 | -8/Garrison | Triggered checkpoint 8831 | -8/Garrison | Garrison Relay disabled 8903 | -8/Garrison | Triggered checkpoint 9032 | -8/Garrison | Triggered checkpoint 9053 | -8/Garrison | Expanded RIF knowledge: Hotswap 9086 | -8/Garrison | Garrison Relay disabled 9474 | -8/Garrison | Entered Factory 9474 | -7/Factory | Accompanied by 2 allies 9474 | -7/Factory | Evolved 2 slots: Utility x2 9731 | -7/Factory | Repaired Broken Nuclear Pulse Array? 10027 | -7/Factory | Identified exit to Garrison 10503 | -7/Factory | Discovered new exit (range 10) 10585 | -7/Factory | Build established: Hacker-Mutant 10713 | -7/Factory | Discovered new exit (range 15) 10930 | -7/Factory | Fabricated P-60 Hacker (x2) 11065 | -7/Factory | Fabricated P-60 Hacker (x2) 11437 | -7/Factory | Build established: Bothacker-Mutant 11503 | -7/Factory | Identified exit to Factory 11554 | -7/Factory | Entered Garrison 11554 | -7/Garrison | Accompanied by 7 allies 11619 | -7/Garrison | Expanded RIF knowledge: Autoassimilate 11886 | -7/Garrison | Triggered checkpoint 11894 | -7/Garrison | Triggered checkpoint 11918 | -7/Garrison | Triggered checkpoint 11928 | -7/Garrison | Build established: Botlord-Mutant 11986 | -7/Garrison | Hacker 4d assimilated hostile G-50 Soldier 11994 | -7/Garrison | Triggered checkpoint 12137 | -7/Garrison | Discovered exit to Factory (range 10) 12302 | -7/Garrison | Build established: Bothacker-Mutant 12341 | -7/Garrison | Discovered exit to Factory (range 14) 12450 | -7/Garrison | Triggered checkpoint 12488 | -7/Garrison | Garrison Relay disabled 12788 | -7/Garrison | Build established: Botlord-Mutant 12920 | -7/Garrison | Garrison Relay disabled 13154 | -7/Garrison | Entered Factory 13154 | -6/Factory | Accompanied by 8 allies 13154 | -6/Factory | Evolved 2 slots: Utility x2 13254 | -6/Factory | Hacking Suite fried by hacking feedback 13329 | -6/Factory | Fabricated G-47 Trooper? 14467 | -6/Factory | Found Prototype Processor 14502 | -6/Factory | Identified Exp. Targeting Computer 14622 | -6/Factory | Build established: Bothacker-Mutant 15078 | -6/Factory | Repaired Mni. Grenade Launcher 15592 | -6/Factory | Fabricated P-60 Hacker (x2) 16153 | -6/Factory | Build established: Commander-Mutant 16358 | -6/Factory | Identified exit to Garrison 16420 | -6/Factory | Entered Garrison 16420 | -6/Garrison | Discovered recently destroyed garrison 16420 | -6/Garrison | Accompanied by 11 allies 16584 | -6/Garrison | P-70 Sage assimilated allied Trooper 5b 16670 | -6/Garrison | Discovered new exit (range 12) 16703 | -6/Garrison | Expanded RIF knowledge: Program Shield 16746 | -6/Garrison | Garrison Relay disabled 16992 | -6/Garrison | Discovered new exit (range 10) 17004 | -6/Garrison | Identified exit to Factory 17094 | -6/Garrison | Garrison Relay disabled 17203 | -6/Garrison | Build established: Botlord-Mutant 17357 | -6/Garrison | Discovered exit to Factory (range 10) 17471 | -6/Garrison | Entered Factory 17471 | -5/Factory | Accompanied by 17 allies 17471 | -5/Factory | Evolved 2 slots: Utility x2 17472 | -5/Factory | Hacker 5a assimilated hostile O-24 Administrator 17779 | -5/Factory | Fabricated B-60 Warrior? 17915 | -5/Factory | Build established: Commander-Mutant 18848 | -5/Factory | Discovered new exit (range 7) 18889 | -5/Factory | Identified exit to Garrison 18927 | -5/Factory | Discovered new exit (range 10) 18930 | -5/Factory | Identified exit to Factory 18937 | -5/Factory | Fabricated Y-54 Guardian? 19196 | -5/Factory | Garrison activated, responded to threat 19291 | -5/Factory | Central database locked down 19423 | -5/Factory | Fabricated A-27 Freighter? 19591 | -5/Factory | Identified exit to Garrison 19623 | -5/Factory | Entered Garrison 19623 | -5/Garrison | Accompanied by 17 allies 19774 | -5/Garrison | Triggered checkpoint 19820 | -5/Garrison | Garrison Relay disabled 19887 | -5/Garrison | Build established: Botlord-Mutant 20055 | -5/Garrison | Spotted B-75 Beast 20068 | -5/Garrison | Triggered checkpoint 20072 | -5/Garrison | Triggered checkpoint 20081 | -5/Garrison | Allies destroyed B-75 Beast 20099 | -5/Garrison | Triggered checkpoint 20102 | -5/Garrison | Triggered checkpoint 20429 | -5/Garrison | Discovered exit to Factory (range 10) 20464 | -5/Garrison | Triggered checkpoint 20482 | -5/Garrison | Garrison Relay disabled 20833 | -5/Garrison | Expanded RIF knowledge: Coupler Efficiency 20872 | -5/Garrison | Triggered checkpoint 20898 | -5/Garrison | Discovered exit to Factory (range 10) 20961 | -5/Garrison | Garrison Relay disabled 21125 | -5/Garrison | Discovered exit to Factory (range 10) 21200 | -5/Garrison | Triggered checkpoint 21227 | -5/Garrison | Garrison Relay disabled 21827 | -5/Garrison | Entered Factory 21827 | -4/Factory | Accompanied by 15 allies 21827 | -4/Factory | Evolved 2 slots: Utility x2 22263 | -4/Factory | Discovered new exit (range 28) 22327 | -4/Factory | First assault squad dispatched 22672 | -4/Factory | Identified exit to Upper Caves 22752 | -4/Factory | System corruption reached 10% 22787 | -4/Factory | Lost 5 parts (5u) 22893 | -4/Factory | Discovered new exit (range 10) 22905 | -4/Factory | Identified exit to Extension 22919 | -4/Factory | Entered Extension 22919 | -4/Extension | Accompanied by 3 allies 23023 | -4/Extension | Rescued a captive Derelict 23187 | -4/Extension | Rescued a captive Derelict 23312 | -4/Extension | Rescued a captive Derelict 23419 | -4/Extension | First assault squad dispatched 23426 | -4/Extension | Rescued A7 23726 | -4/Extension | Spotted B-86 Titan 23735 | -4/Extension | Spotted B-86 Titan 23735 | -4/Extension | Allies destroyed B-86 Titan 23756 | -4/Extension | Allies destroyed B-86 Titan 24255 | -4/Extension | Rescued a captive Derelict 24256 | -4/Extension | Rescued a captive Derelict 24265 | -4/Extension | Rescued a captive Derelict 24266 | -4/Extension | Rescued a captive Derelict 24301 | -4/Extension | Rescued a captive Derelict 24328 | -4/Extension | Discovered new exit (range 10) 24329 | -4/Extension | Discovered new exit (range 6) 24632 | -4/Extension | Identified exit to Cetus 24642 | -4/Extension | Entered Cetus 24642 | -4/Cetus | Accompanied by 15 allies (A7) 24647 | -4/Cetus | Acquired a Cetus Manufacturing Module code from A7 24655 | -4/Cetus | Spotted Cetus Guard 24655 | -4/Cetus | Spotted Cetus Guard 24660 | -4/Cetus | Spotted Cetus Guard 24662 | -4/Cetus | Allies destroyed Cetus Guard 24665 | -4/Cetus | Spotted Cetus Guard 24668 | -4/Cetus | Allies destroyed Cetus Guard 24675 | -4/Cetus | Allies destroyed Cetus Guard 24682 | -4/Cetus | Allies destroyed Cetus Guard 24756 | -4/Cetus | Started Cetus Manufacturing Module 24773 | -4/Cetus | Escorted A7 to Cetus Mainframe 24781 | -4/Cetus | Manufactured an Enhanced Grunt 24797 | -4/Cetus | Discovered new exit (range 16) 24806 | -4/Cetus | Manufactured an Enhanced Grunt 24831 | -4/Cetus | Manufactured an Enhanced Grunt 24856 | -4/Cetus | Manufactured an Enhanced Grunt 24881 | -4/Cetus | Manufactured an Enhanced Grunt 24905 | -4/Cetus | Identified exit to Archives 24923 | -4/Cetus | Entered Archives 24923 | -4/Archives | Accompanied by 16 allies (A7) 24928 | -4/Archives | Received a hacking code to weaken MAIN.C 24983 | -4/Archives | Discovered new exit (range 16) 25004 | -4/Archives | Discovered new exit (range 15) 25042 | -4/Archives | Discovered new exit (range 15) 25541 | -4/Archives | Identified exit to Hub_04(d) 25559 | -4/Archives | Entered Hub_04(d) 25559 | -4/Hub_04(d) | Accompanied by 15 allies 25722 | -4/Hub_04(d) | Discovered new exit (range 14) 25895 | -4/Hub_04(d) | Garrison activated, responded to threat 25987 | -4/Hub_04(d) | Identified exit to Garrison 25995 | -4/Hub_04(d) | Entered Garrison 25995 | -4/Garrison | Accompanied by 7 allies 26167 | -4/Garrison | Discovered new exit (range 56) 26167 | -4/Garrison | Discovered new exit (range 38) 26167 | -4/Garrison | Discovered new exit (range 61) 26196 | -4/Garrison | Triggered checkpoint 26268 | -4/Garrison | Expanded RIF knowledge: Patrol Navigation 26301 | -4/Garrison | Garrison Relay disabled 26374 | -4/Garrison | Found Adv. Powered Armor 26378 | -4/Garrison | Found Adv. Powered Armor 26382 | -4/Garrison | Found Adv. Powered Armor 26386 | -4/Garrison | Found Adv. Powered Armor 26391 | -4/Garrison | Garrison Relay disabled 26453 | -4/Garrison | Triggered checkpoint 26488 | -4/Garrison | Triggered checkpoint 26650 | -4/Garrison | Identified exit to Research 26653 | -4/Garrison | Entered Research 26653 | -3/Research | Accompanied by 2 allies 26653 | -3/Research | Evolved 2 slots: Utility x2 27098 | -3/Research | Discovered new exit (range 22) 27226 | -3/Research | Identified exit to Testing 27539 | -3/Research | Repaired Adv. KE Penetrator 28132 | -3/Research | Fabricated P-80 Master (x2) 28138 | -3/Research | Found Enh. Force Lance 28237 | -3/Research | Fabricated P-80 Master? 28492 | -3/Research | Fabricated I-47 Archangel? 28733 | -3/Research | Found Prototype Processor 28734 | -3/Research | Identified Exp. Core Analyzer 28739 | -3/Research | Found Exp. Core Analyzer 28814 | -3/Research | Fabricated P-80 Master (x2) 28898 | -3/Research | Fabricated Adv. Hacking Suite (x1) 29103 | -3/Research | Master 8a assimilated hostile S-43 Plague 29356 | -3/Research | Garrison activated, responded to threat 29557 | -3/Research | Fabricated P-80 Master (x2) 29716 | -3/Research | Identified exit to Garrison 29716 | -3/Research | Entered Garrison 29716 | -3/Garrison | Accompanied by 3 allies 29736 | -3/Garrison | Learned Research security intel 29736 | -3/Garrison | Discovered new exit (range 104) 29736 | -3/Garrison | Discovered new exit (range 60) 29736 | -3/Garrison | Discovered new exit (range 68) 29763 | -3/Garrison | Triggered checkpoint 29779 | -3/Garrison | Garrison Relay disabled 29968 | -3/Garrison | Spotted B-86 Titan 30322 | -3/Garrison | Destroyed B-86 Titan 30343 | -3/Garrison | Lost 3 parts (1n2u) 30507 | -3/Garrison | Assimilated ARC 8a with formatsys_deep 30648 | -3/Garrison | Garrison Relay disabled 30784 | -3/Garrison | Triggered checkpoint 30953 | -3/Garrison | Garrison Relay disabled 31013 | -3/Garrison | Identified exit to Research 31015 | -3/Garrison | Entered Research 31015 | -3/Research | Accompanied by 2 allies 31344 | -3/Research | Garrison activated, responded to threat 31636 | -3/Research | Spotted B-86 Titan 31682 | -3/Research | System corruption reached 10% 31740 | -3/Research | Identified exit to Garrison 31740 | -3/Research | Entered Garrison 31774 | -3/Garrison | Expanded RIF knowledge: Autooverride 31882 | -3/Garrison | Triggered checkpoint 32036 | -3/Garrison | Spotted B-86 Titan 32086 | -3/Garrison | Triggered checkpoint 32116 | -3/Garrison | Lost 3 parts (1n2u) 32143 | -3/Garrison | Discovered new exit (range 22) 32166 | -3/Garrison | Triggered checkpoint 32210 | -3/Garrison | Garrison Relay disabled 32289 | -3/Garrison | Rescued a captive Derelict 32342 | -3/Garrison | Triggered checkpoint 32347 | -3/Garrison | Triggered checkpoint 32362 | -3/Garrison | Allies destroyed B-86 Titan 32404 | -3/Garrison | Triggered checkpoint 32419 | -3/Garrison | Discovered new exit (range 19) 32419 | -3/Garrison | Discovered new exit (range 55) 32419 | -3/Garrison | Discovered new exit (range 34) 32424 | -3/Garrison | Discovered new exit (range 19) 32424 | -3/Garrison | Discovered new exit (range 58) 32424 | -3/Garrison | Discovered new exit (range 32) 32882 | -3/Garrison | Entered Research 32882 | -2/Research | Accompanied by 2 allies 32882 | -2/Research | Evolved 2 slots: Propulsion x2 32917 | -2/Research | Discovered new exit (range 134) 33132 | -2/Research | First assault squad dispatched 34079 | -2/Research | Crushed by falling debris 34113 | -2/Research | Fabricated P-80 Master? 34200 | -2/Research | Fabricated P-80 Master? 34476 | -2/Research | Identified exit to Quarantine 34482 | -2/Research | Found Prototype Launcher 34525 | -2/Research | Found Prototype Device 34617 | -2/Research | Identified Exp. Force Field 34617 | -2/Research | Identified Ragnarok Missile Launcher 34661 | -2/Research | Found Prototype Processor 34700 | -2/Research | Identified Exp. Terrain Scan Processor 34759 | -2/Research | Found Prototype Device 34985 | -2/Research | Found Prototype Processor 34988 | -2/Research | Found Prototype Processor 35079 | -2/Research | Fabricated Exp. Hacking Suite (x1) 35170 | -2/Research | Entered Quarantine 35170 | -2/Quarantine | Accompanied by 6 allies 35516 | -2/Quarantine | P-80 Master assimilated allied Warden 9b 35640 | -2/Quarantine | Discovered new exit (range 3) 35688 | -2/Quarantine | Identified Adv. EM Disruption Field 35688 | -2/Quarantine | Identified Spectral Analyzer (x2) 35743 | -2/Quarantine | Found Phase Redirector 35809 | -2/Quarantine | Found Core Reset Matrix 36317 | -2/Quarantine | Found Terrabomb 36353 | -2/Quarantine | Found Core Stripper 36522 | -2/Quarantine | Found Alien Artifact 36522 | -2/Quarantine | Identified Phase Armor 36645 | -2/Quarantine | Found Sigix Broadsword 36740 | -2/Quarantine | Spotted Alpha 7 36812 | -2/Quarantine | Found Subatomic Replicator 36929 | -2/Quarantine | Found Sigix Terminator 37081 | -2/Quarantine | Spotted Fortress 37115 | -2/Quarantine | Destroyed Fortress 37136 | -2/Quarantine | Found Exp. EM Disruption Field 37147 | -2/Quarantine | Found Thermal Barrier 37303 | -2/Quarantine | Discovered new exit (range 6) 37313 | -2/Quarantine | Entered Section 7 37313 | -2/Section 7 | Accompanied by 6 allies 37338 | -2/Section 7 | Found Integrated Reactor 37339 | -2/Section 7 | Installed Integrated Reactor, increased core energy generation (+10) 37452 | -2/Section 7 | Found Microwarp Drive 37601 | -2/Section 7 | Spotted S7 Guard 37663 | -2/Section 7 | Found Thermal Barrier 37760 | -2/Section 7 | Found Alien Artifact 37866 | -2/Section 7 | Identified Core Membrane 37866 | -2/Section 7 | Installed Core Membrane, gained immunity to corruption 37976 | -2/Section 7 | Destroyed S7 Guard 38009 | -2/Section 7 | Core integrity fell below 50% 38275 | -2/Section 7 | Found Integrated Reactor 38382 | -2/Section 7 | Spotted S7 Guard 38389 | -2/Section 7 | Garrison activated, responded to threat 38427 | -2/Section 7 | Destroyed S7 Guard 38438 | -2/Section 7 | Found Alien Artifact 38451 | -2/Section 7 | Spotted B-90 Cyclops 38572 | -2/Section 7 | Identified Integrity Redistributor 38656 | -2/Section 7 | P-80 Master assimilated allied Director 9b 38716 | -2/Section 7 | Spotted S7 Guard 38734 | -2/Section 7 | Destroyed S7 Guard 38738 | -2/Section 7 | Found Hvy. Regenerative Plating 38747 | -2/Section 7 | Found Alien Artifact 38761 | -2/Section 7 | Build established: Wizard-Mutant 38770 | -2/Section 7 | Identified Integrated Thermoelectric Network 38770 | -2/Section 7 | Installed Integrated Thermoelectric Network, gained heat-energy exchange potential 38978 | -2/Section 7 | Found Exp. Core Analyzer 39194 | -2/Section 7 | Identified exit to Access 39198 | -2/Section 7 | Spotted S7 Guard 39214 | -2/Section 7 | Destroyed S7 Guard 39221 | -2/Section 7 | Found Hvy. Regenerative Plating 39238 | -2/Section 7 | Found Alien Artifact 39503 | -2/Section 7 | Spotted Alpha 7 39505 | -2/Section 7 | Spotted Alpha 7 39690 | -2/Section 7 | Destroyed Alpha 7 39715 | -2/Section 7 | Found Prototype Ballistic Gun 39733 | -2/Section 7 | Identified Navigation Efficiency Matrix 39733 | -2/Section 7 | Identified Multirail 40228 | -2/Section 7 | Repaired Exp. Cooling System? 40276 | -2/Section 7 | Core integrity fell below 20% 40295 | -2/Section 7 | Entered Access 40295 | -1/Access | Evolved 2 slots: Power x1, Weapon x1 40825 | -1/Access | Installed Integrated Reactor, increased core energy generation (+10) 41175 | -1/Access | Used Integrity Redistributor, redistributed integrity from core (-398) 41295 | -1/Access | First assault squad dispatched 41681 | -1/Access | Discovered new exit (range 8) 41691 | -1/Access | Entered Command 41822 | -1/Command | Identified exit to Surface 41996 | -1/Command | Repaired Exp. Coolant Injector 42314 | -1/Command | Spotted B-99 Colossus 42332 | -1/Command | Core integrity fell below 50% 42362 | -1/Command | Destroyed B-99 Colossus 42424 | -1/Command | Found Multirail 42428 | -1/Command | Found Multirail 42441 | -1/Command | First assault squad dispatched 42465 | -1/Command | Found Hvy. Reflective Plating 42706 | -1/Command | Build established: Hacker-Tank 42782 | -1/Command | Destroyed 8 combat bots 42874 | -1/Command | Used Subatomic Replicator to create Alien Launcher 42884 | -1/Command | Identified Supercharged Sigix Terminator 42974 | -1/Command | Spotted B-99 Colossus 42980 | -1/Command | Spotted Alpha 7 42980 | -1/Command | Spotted Striker 42985 | -1/Command | Spotted Executioner 42985 | -1/Command | Spotted Striker 42986 | -1/Command | Fired Supercharged Sigix Terminator 42986 | -1/Command | Destroyed Executioner 42986 | -1/Command | Destroyed Executioner 42986 | -1/Command | Destroyed B-99 Colossus 42986 | -1/Command | Destroyed Striker 42986 | -1/Command | Destroyed Striker 42986 | -1/Command | Destroyed Executioner 42986 | -1/Command | Destroyed Executioner 42986 | -1/Command | Destroyed B-99 Colossus 42986 | -1/Command | Destroyed Alpha 7 42986 | -1/Command | Destroyed Alpha 7 42986 | -1/Command | Phase Generator disabled 42986 | -1/Command | High security lockdown imminent 43001 | -1/Command | Core integrity fell below 20% 43033 | *** | Escaped! Last Messages --------------- 43016_ Core Membrane filtered system corruption (1). 43017_ Dropped Huge Storage Unit. 43017_ Dropped Imp. Quantum Reactor. 43018_ Dropped Mic. Antimatter Reactor. 43018_ Penetrated by Slug. 43018_ Dropped Point Defense Array. 43019_ Dropped Multirail. 43019_ P-80 Master resets S-43 Plague, system corruption cleaned. 43019_ Dropped Multirail. 43020_ Dropped Microwarp Drive. 43021_ S-43 Plague destroyed. 43021_ Core Membrane filtered system corruption (1). 43022_ P-80 Master resets H-88 Terminator, system corruption cleaned. 43022_ Penetrated by Slug. 43031_ The unstable cave ceiling collapses. 43031_ H-88 Terminator crushed by falling debris. 43032_ The unstable cave ceiling collapses. 43032_ Core Membrane filtered system corruption (1). 43033_ Penetrated by Slug. [Achievement: By A Hair] Map ----- +----------------------------------------------------+ | ???????????????????# #%####???????????????????? | | ???????????????????# #%#??????????????????????? | | #################### ; ;?????????????????????? | | # # ; ; ????????????????? | | # [ ; ; ; ???????????] | | # """" """ ; ; ; ??????? """"""" | | # """" ; ; ?? " | | # """" ; ; ; " | | # "" ;;;;;; ; " | | + ;;;;;;;;;;;;;;; " | | # ; ; " | | ##""""#;;;;;;;;;;;;; ; ; | | ! ; ; ;;;; ; ; | | ; ; ; ; ; | | =; ;;;;;; ; ; | | """""";; ; ; ; | | ;;;;;;;;;;;;;;; ; | | ;;;;;;;;;;;;;;;; ; | | ;;;;;;;;;;;;;;;; ; | | ;; ;;;;;;;;;;;;;;;""" | | ;; ;;;;;;;;;;; | | ;; ; ; ; ; # # | | ;; ## "" | | ;; | | ";;;;;;;;;;;;; ;; "" | | "l ; ;; @" | | "lhl ; ;; | | " lb ; ;; | | " ; ;; ; ; ; ; ; # ; | | " ; ;; ;;;;;;;;;;; ; | | " l h p h ; ;; ;;;;;;;;;;; ; | | " bb hh h ; ;;;;;;;;;;;;;;;; ; | | " ph hpp; ;;;;;;;;;;;;;;;; ;""" | | " l b h p; ;; ;;;;;;;; | | " h p pp hp ; = ; | | hph hpp;;;; ; ;;;;;;;;;;;;""""" | | hl pp ; ; ; | | """";;;;;;;;;;;p; ; ;;;;;;;;;;;;""""" | | " ; ; ;;;;;; ; ; " | | " ; #hp ; ;;;; " | | " ; ;;;;;;;; ; ; " | | " ; # h;;;;;; ;;;; """"" | | ##"" ;;=[;"g;g;sp ;;;;;;;;;;; ; " | | |%h hb g p ; ; """"" | | ![%=hb ; ; " | | #"""""""""""=""";;; ;;;;;; " " | | " ";; ;;;;;; " " | | " " * " """""""""" | | " " !=]*[ " | | " *!%!]![ " | +----------------------------------------------------+ Best States ------------- Heat Dissipation 118 Coolant Potential 120 Energy Generation 69 Energy Capacity 500 Matter Stores 300 Matter Capacity 300 Sight Range 24 Robot Scan Range 18 Terrain Scan Density 10 EM Shielding 2 Armor Coverage 2850 Resistance: TH 50 Resistance: EM 75 Core Shielding 30 Point Defense Rating 160 Phase Shifting 15 Evasion (%) 62 Targeting Accuracy 8 Core Analysis 8 Recoil Reduction 4 Offensive Hacking 50 Defensive Hacking 36 Relay Coupler Types 7 Relay Coupler Value 315 Authchip Count 4 Item Schematics ----------------- Hcp. Storage Unit | -9/Materials | Hacked Huge Storage Unit | -9/Materials | Scanalyzed Cld. Ion Engine | -9/Materials | Scanalyzed Hacking Suite | -8/Materials | Hacked Nuclear Pulse Array | -7/Factory | Scanalyzed Remote Datajack | -7/Factory | Hacked Mni. Grenade Launcher | -6/Factory | Scanalyzed Ion Burst Cannon | -6/Factory | Scanalyzed Imp. Hacking Suite | -6/Factory | Hacked Exp. Targeting Computer | -6/Factory | Scanalyzed Cld. Cesium-ion Thruster | -6/Factory | Scanalyzed Cold Fusion Reactor | -6/Factory | Scanalyzed Com. Ion Cannon | -6/Factory | Scanalyzed Tri-rail Accelerator | -5/Factory | Scanalyzed Adv. Hacking Suite | -5/Factory | Hacked Q-thruster | -5/Factory | Hacked Exp. Heat Sink | -5/Factory | Scanalyzed Impulse Thruster Array | -5/Factory | Hacked Adv. System Shield | -5/Factory | Hacked Imp. Lightning Gun | -3/Research | Scanalyzed Exp. Optical Array | -3/Research | Scanalyzed Imp. Armor Integrity Analyzer | -3/Research | Scanalyzed Exp. Hacking Suite | -2/Research | Hacked Exp. Force Field | -2/Research | Scanalyzed Exp. Terrain Scan Processor | -2/Research | Scanalyzed Cld. Phase Cannon | -2/Research | Scanalyzed Adv. Melee Analysis Suite | -2/Research | Scanalyzed Beam Splitter | -2/Quarantine | Archive Cld. Field Propulsion Drive | -2/Quarantine | Archive Neutron Missile Launcher | -2/Quarantine | Archive Graviton Reactor | -2/Quarantine | Archive Imp. Matter Neutralizer | -2/Section 7 | Archive Exp. Cooling System | -2/Section 7 | Archive Centrium Light Armor Plating | -2/Section 7 | Archive Exp. Utility Shielding | -2/Section 7 | Archive Hvy. Tesla Rifle | -2/Section 7 | Archive Prc. Energy Filter | -2/Section 7 | Archive Exp. Weapon Cycler | -2/Section 7 | Archive Cld. Impulse Thruster | -2/Section 7 | Archive Robot Schematics ------------------ H-55 Commando | -8/Materials | Hacked P-60 Hacker | -7/Factory | Hacked A-27 Freighter | -5/Factory | Hacked I-47 Archangel | -5/Factory | Hacked P-80 Master | -3/Research | Hacked G-73 Enforcer | -2/Section 7 | Archive A-15 Conveyor | -2/Section 7 | Archive S-43 Plague | -2/Section 7 | Archive K-01 Serf | -2/Section 7 | Archive Fabricated ------------ P-60 Hacker | x2 | -7/Factory | Authchip P-60 Hacker | x2 | -7/Factory | Authchip G-47 Trooper | x3 | -6/Factory | Preloaded P-60 Hacker | x2 | -6/Factory B-60 Warrior | x3 | -5/Factory | Preloaded Y-54 Guardian | x2 | -5/Factory | Preloaded A-27 Freighter | x1 | -5/Factory | Authchip P-80 Master | x2 | -3/Research | Authchip P-80 Master | x2 | -3/Research | Authchip I-47 Archangel | x1 | -3/Research | Authchip P-80 Master | x2 | -3/Research | Authchip Adv. Hacking Suite | x1 | -3/Research P-80 Master | x2 | -3/Research P-80 Master | x2 | -2/Research | Authchip P-80 Master | x2 | -2/Research | Authchip Exp. Hacking Suite | x1 | -2/Research Alien Tech Used ----------------- Phase Redirector Phase Armor Core Stripper Integrated Reactor Core Membrane Sigix Broadsword Microwarp Drive Integrated Thermoelectric Network Integrity Redistributor Subatomic Replicator Supercharged Sigix Terminator Achievements -------------- By A Hair Challenges ------------ None Game ------ Seed ArchitectRecyclingBlaster Manual? 0 Play Time 10:37:55 Cumulative 470.7 hours Start 2023.03.12 @ 21:32:26 End 2023.03.13 @ 21:25:52 Sessions 7 Manual Loads 0 Difficulty Rogue Special Mode None Game No. 117 Rogue 117 Adventurer 0 Explorer 0 Win Type 0 Total 22 Types 16/1/4/0/0/0/0/1/0 Lore% 90 Gallery% 92 Achievement% 78 Wizard Run 0 Options --------- ASCII 0 Keyboard 0 Movement Numpad Keybinds 0 Fullscreen 1 Font 14/SmallcapsGlow Map View 84x54 Tactical HUD 1 Map Filters NONE Filters NONE Steam 1 RUN: 97368d79-65b3-410a-8ecb-fdbcaea67f77